Workbook

Sheet Accueil
A1: BIENVENUE DANS LA MOB
A4: Pour faciliter le travail des opérationnels, il a été convenu que certains éléments seront alimentés par les assistantes :
A6: - Maladies,
A7: - Entrées et sorties des CDD : Nom, prénom, dates du CDD, motif, répartition.
A9: Pour le reste, à vous de l’alimenter en fonction des éléments connus :
A11: - Absences (CP, ABI…)
A12: - Heures complémentaires, avpp, supplémentaires (avec motif),
A13: - Primes : avec motif.
A16: La mob permettra d’avoir un visu sur la vie des sites et en cas d’absence inopinée d’avoir une base de travail pour la paye.
A19: Utilisation
A20: Vous êtes actuellement sur TEAMS et certaines fonctionnalités ne vont pas apparaître, pour y remédier veuillez ouvrir le fichier dans excel en cliquant sur le bouton Edition
A21: Vous devrez ensuite activer les modifications
A31: pensez à enregistrer régulièrement votre travail en cliquant simplement sur la disquette enregistrer
A35: une fois votre mob remplie, enregistrez une nouvelle fois et fermer le fichier excel: toutes les modifications seront automatiquement mises sur teams.
A37: NE JAMAIS FAIRE "ENREGISTRER SOUS"
A40: ETAPE 1
A42: vérifier que vous avez l'ensemble de vos salariés sur chaque site
A43: les salariés en AVPP et venant d'un autre site seront indiqués sur fond bleu, il est donc indispensable que vous transmettiez les matrices de ces contrats aux assistantes pour ajout
A44: les salariés en cdd seront indiqués sur fond vert
A46: ETAPE 2
A48: indiquer les absences et heures en plus pour chacun des salariés quand il y a lieu, uniquement dans le pointage en ajoutant le motif dans la 4ème ligne (choix déroulant)
A49: ne toucher pas aux colonnes en dehors, les calculs sont faits automatiquement
A51: ETAPE 3
A53: en cas d'indication O au niveau de la colonne AVPP, vous devez réaliser et transmettre un contrat avpp signé aux assistantes pour archivage
A55: ETAPE 4
A57: toutes les heures en plus et les primes exceptionnelles doivent être justifées au niveau de la colonne BD
A58: cela ne vous dispensera pas de transmettre les tableaux de primes et rappels chaque mois pour signature

Sheet Liste CDPF
A1: ={"Accueil","Liste CDPF","720661 essilor","723806 urgence med","723314 médiathèque","723315 mission pénit","723775 EPIN","Taux horaire","synthèse"} -> Accueil
A2: faire F9 sur cellule A pour actualiser liste ci-dessous
A7: 1 | B7: =IFERROR(INDEX(ListeCDPF,,A7+1),"") -> Liste CDPF
A8: 2 | B8: =IFERROR(INDEX(ListeCDPF,,A8+1),"") -> Taux horaire | C8: Taux horaire'!A1
A9: 3 | B9: synthèse | C9: synthèse!A1
A10: 4 | B10: 720661 essilor | C10: 720661 essilor'!A1
A11: 5 | B11: 723806 urgence med | C11: 723806 urgence med'!A1
A12: 6 | B12: 723314 médiathèque | C12: 723314 médiathèque'!A1
A13: 7 | B13: 723315 mission pénitentiaire | C13: 723315 mission pénitentiaire'!A1
A14: 8 | B14: 723775 EPIN | C14: 723775 EPIN'!A1
A15: 9
A16: 10
A17: 11
A18: 12
A19: 13
A20: 14
A21: 15
A22: 16
A23: 17
A24: 18
A25: 19
A26: 20
A27: 21
A28: 22
A29: 23
A30: 24
A31: 25
A32: 26
A33: 27
A34: 28
A35: 29
A36: 30
A37: 31
A38: 32
A39: 33
A40: 34
A41: 35
A42: 36
A43: 37
A44: 38
A45: 39
A46: 40
A47: 41
A48: 42
A49: 43
A50: 44
A51: 45
A52: 46
A53: 47
A54: 48
A55: 49
A56: 50
A57: 51
A58: 52
A59: 53
A60: 54
A61: 55
A62: 56
A63: 57
A64: 58
A65: 59
A66: 60
A67: 61
A68: 62
A69: 63
A70: 64
A71: 65
A72: 66 | B72: =IFERROR(INDEX(ListeCDPF,,A72+1),"") -> 
A73: 67
A74: 68
A75: 69
A76: 70
A77: 71
A78: 72
A79: 73
A80: 74
A81: 75
A82: 76
A83: 77
A84: 78
A85: 79
A86: 80
A87: 81
A88: 82
A89: 83
A90: 84
A91: 85
A92: 86
A93: 87
A94: 88
A95: 89
A96: 90
A97: 91
A98: 92
A99: 93
A100: 94
A101: 95
A102: 96
A103: 97

Sheet Taux horaire
A1: FEP 01/07/2023
A2: FILIERE EXPLOITATION
A3: NIVEAU | B3: TX/H
A4: APP1 | B4: 0
A5: APP2 | B5: 0
A6: ASPA | B6: 11.75 | C6: AS1A
A7: ASPB | B7: 11.93 | C7: AS1B
A8: ASCA | B8: 11.79 | C8: AS2A
A9: ASCB | B9: 12.01 | C9: AS2B
A10: ASCSA | B10: 11.86 | C10: AS3A
A11: ASCSB | B11: 12.07 | C11: AS3B
A12: AQS1A | B12: 11.92
A13: AQS1B | B13: 12.12
A14: AQS2A | B14: 12.03
A15: AQS2B | B15: 12.25
A16: AQS3A | B16: 12.13
A17: AQS3B | B17: 12.35
A18: ATQS1A | B18: 12.36
A19: ATQS1B | B19: 12.57
A20: ATQS2A | B20: 13.06
A21: ATQS2B | B21: 13.29
A22: ATQS3A | B22: 14.04
A23: ATQS3B | B23: 14.33
A24: CE1 | B24: 13.55
A25: CE2 | B25: 14.33
A26: CE3 | B26: 14.5
A27: MP1 | B27: 14.56
A28: MP2 | B28: 15.39
A29: MP3 | B29: 17.06
A30: MP4 | B30: 19.01
A31: MP5 | B31: 20.55
B32: 0

Sheet synthèse
A1: =Synthèse -> Accueil
C3: Budget | D3: Coût total mois | E3: delta
A4: 3 | B4: =IFERROR(INDEX(ListeCDPF,,A5+1),"") -> 720661 essilor | C4: =IFERROR(INDIRECT("'"&$B4&"'!$Az$2"),"") -> 0 | D4: =IFERROR(INDIRECT("'"&$B4&"'!$BA$2"),"") -> 17229.77333 | E4: =D4-C4 -> 17229.77333
A5: 4 | B5: =IFERROR(INDEX(ListeCDPF,,A6+1),"") -> 723806 urgence med | C5: =IFERROR(INDIRECT("'"&$B5&"'!$Az$2"),"") -> 0 | D5: 534.625 | E5: =D5-C5 -> 534.625
A6: 5 | B6: 723314 médiathèque | C6: 0 | D6: 2303.6 | E6: 2303.6
A7: 6 | B7: 723315 mission pénitentiaire | C7: 0 | D7: 894.075 | E7: 894.075
A8: 7 | B8: 723775 EPIN | C8: 0 | D8: =IFERROR(INDIRECT("'"&$B8&"'!$BA$2"),"") -> 2214.995967 | E8: 2214.995967
A9: 8 | C9: =IFERROR(INDIRECT("'"&$B9&"'!$Az$2"),0) -> 0 | D9: =IFERROR(INDIRECT("'"&$B9&"'!$BA$2"),0) -> 0 | E9: 0
A10: 9 | C10: =IFERROR(INDIRECT("'"&$B10&"'!$Az$2"),0) -> 0 | D10: =IFERROR(INDIRECT("'"&$B10&"'!$BA$2"),0) -> 0 | E10: 0
A11: 10 | C11: 0 | D11: 0 | E11: 0
A12: 11 | C12: 0 | D12: 0 | E12: 0
A13: 12 | C13: 0 | D13: 0 | E13: 0
A14: 13 | C14: 0 | D14: 0 | E14: 0
A15: 14 | C15: 0 | D15: 0 | E15: 0
A16: 15 | C16: 0 | D16: 0 | E16: 0
A17: 16 | C17: 0 | D17: 0 | E17: 0
A18: 17 | C18: 0 | D18: 0 | E18: 0
A19: 18 | C19: 0 | D19: 0 | E19: 0
A20: 19 | C20: 0 | D20: 0 | E20: 0
A21: 20 | C21: 0 | D21: 0 | E21: 0
A22: 21 | C22: 0 | D22: 0 | E22: 0
A23: 22 | C23: 0 | D23: 0 | E23: 0
A24: 23 | C24: 0 | D24: 0 | E24: 0
A25: 24 | C25: 0 | D25: 0 | E25: 0
A26: 25 | C26: 0 | D26: 0 | E26: 0
A27: 26 | C27: 0 | D27: 0 | E27: 0
A28: 27 | C28: 0 | D28: 0 | E28: 0
A29: 28 | C29: 0 | D29: 0 | E29: 0
A30: 29 | C30: 0 | D30: 0 | E30: 0
A31: 30 | C31: 0 | D31: 0 | E31: 0
A32: 31 | C32: 0 | D32: 0 | E32: 0
A33: 32 | C33: 0 | D33: 0 | E33: 0
A34: 33 | C34: 0 | D34: 0 | E34: 0
A35: 34 | C35: 0 | D35: 0 | E35: 0
A36: 35 | C36: 0 | D36: 0 | E36: 0
A37: 36 | C37: 0 | D37: 0 | E37: 0
A38: 37 | C38: 0 | D38: 0 | E38: 0
A39: 38 | C39: 0 | D39: 0 | E39: 0
A40: 39 | C40: 0 | D40: 0 | E40: 0
A41: 40 | C41: 0 | D41: 0 | E41: 0
A42: 41 | C42: 0 | D42: 0 | E42: 0
A43: 42 | C43: 0 | D43: 0 | E43: 0
A44: 43 | C44: 0 | D44: 0 | E44: 0
A45: 44 | C45: 0 | D45: 0 | E45: 0
A46: 45 | C46: 0 | D46: 0 | E46: 0
A47: 46 | C47: 0 | D47: 0 | E47: 0
A48: 47 | C48: 0 | D48: 0 | E48: 0
A49: 48 | C49: 0 | D49: 0 | E49: 0
A50: 49 | C50: 0 | D50: 0 | E50: 0
A51: 50 | C51: 0 | D51: 0 | E51: 0
A52: 51 | C52: 0 | D52: 0 | E52: 0
A53: 52 | C53: 0 | D53: 0 | E53: 0
A54: 53 | C54: 0 | D54: 0 | E54: 0
A55: 54 | C55: 0 | D55: 0 | E55: 0
A56: 55 | C56: 0 | D56: 0 | E56: 0
A57: 56 | C57: 0 | D57: 0 | E57: 0
A58: 57 | C58: 0 | D58: 0 | E58: 0
A59: 58 | C59: 0 | D59: 0 | E59: 0
A60: 59 | C60: 0 | D60: 0 | E60: 0
A61: 60 | C61: 0 | D61: 0 | E61: 0
A62: 61 | C62: 0 | D62: 0 | E62: 0
A63: 62 | C63: 0 | D63: 0 | E63: 0
A64: 63 | C64: 0 | D64: 0 | E64: 0
A65: 64 | C65: 0 | D65: 0 | E65: 0
A66: 65 | C66: 0 | D66: 0 | E66: 0
A67: 66 | C67: 0 | D67: 0 | E67: 0
A68: 67 | C68: 0 | D68: 0 | E68: 0
A69: 68 | C69: 0 | D69: 0 | E69: =D69-C69 -> 0
A70: 69 | C70: 0 | D70: 0 | E70: 0
A71: 70 | C71: 0 | D71: 0 | E71: 0
A72: 71 | C72: 0 | D72: 0 | E72: 0
A73: 72 | C73: 0 | D73: 0 | E73: 0
A74: 73 | C74: =IFERROR(INDIRECT("'"&$B74&"'!$Az$2"),0) -> 0 | D74: =IFERROR(INDIRECT("'"&$B74&"'!$BA$2"),0) -> 0 | E74: 0
A75: 74 | C75: 0 | D75: 0 | E75: 0
A76: 75 | C76: 0 | D76: 0 | E76: 0
A77: 76 | C77: 0 | D77: 0 | E77: 0
A78: 77 | C78: 0 | D78: 0 | E78: 0
A79: 78 | C79: 0 | D79: 0 | E79: 0
A80: 79 | C80: 0 | D80: 0 | E80: 0
A81: 80 | C81: 0 | D81: 0 | E81: 0
A82: 81 | C82: 0 | D82: 0 | E82: 0
A83: 82 | C83: 0 | D83: 0 | E83: 0
A84: 83 | C84: 0 | D84: 0 | E84: 0
A85: 84 | C85: 0 | D85: 0 | E85: 0
A86: 85 | C86: 0 | D86: 0 | E86: 0
A87: 86 | C87: 0 | D87: 0 | E87: 0
A88: 87 | C88: 0 | D88: 0 | E88: 0
A89: 88 | C89: 0 | D89: 0 | E89: 0
A90: 89 | C90: 0 | D90: 0 | E90: 0
A91: 90 | C91: 0 | D91: 0 | E91: 0
A92: 91 | C92: 0 | D92: 0 | E92: 0
A93: 92 | C93: 0 | D93: 0 | E93: 0
A94: 93 | C94: 0 | D94: 0 | E94: 0
A95: 94 | C95: 0 | D95: 0 | E95: 0
A96: 95 | C96: 0 | D96: 0 | E96: 0
A97: 96 | C97: 0 | D97: 0 | E97: 0
A98: 97 | C98: 0 | D98: 0 | E98: 0
A99: 98 | C99: 0 | D99: 0 | E99: 0
A100: 99 | C100: 0 | D100: 0 | E100: 0
A101: 100 | C101: 0 | D101: 0 | E101: 0
A102: 101 | C102: 0 | D102: 0 | E102: 0
A103: 102 | C103: 0 | D103: 0 | E103: 0
A104: 103 | C104: 0 | D104: 0 | E104: 0
A105: 104 | C105: 0 | D105: 0 | E105: 0
A106: 105 | C106: 0 | D106: 0 | E106: 0
A107: 106 | C107: 0 | D107: 0 | E107: 0
A108: 107 | C108: 0 | D108: 0 | E108: 0
A109: 108 | C109: 0 | D109: 0 | E109: 0
A110: 109 | C110: 0 | D110: 0 | E110: 0
A111: 110 | C111: 0 | D111: 0 | E111: 0
A112: 111 | C112: 0 | D112: 0 | E112: 0
A113: 112 | C113: 0 | D113: 0 | E113: 0
A114: 113 | C114: 0 | D114: 0 | E114: 0
A115: 114 | C115: 0 | D115: 0 | E115: 0

Sheet 720661 essilor
H1: 2023-09-01 | AV1: ²
A2: 720661 | B2: ESSILOR | I2: 2019-08-05 | J2: 2019-08-06 | K2: 2019-08-07 | L2: 2019-08-01 | M2: 2019-08-02 | N2: 2019-08-03 | O2: 2019-08-04 | R2: =H1 -> 2023-09-01 | S2: =R2+1 -> 2023-09-02 | T2: =S2+1 -> 2023-09-03 | U2: 2023-09-04 | V2: 2023-09-05 | W2: 2023-09-06 | X2: 2023-09-07 | Y2: 2023-09-08 | Z2: 2023-09-09 | AA2: 2023-09-10 | AB2: 2023-09-11 | AC2: 2023-09-12 | AD2: 2023-09-13 | AE2: 2023-09-14 | AF2: 2023-09-15 | AG2: 2023-09-16 | AH2: 2023-09-17 | AI2: 2023-09-18 | AJ2: 2023-09-19 | AK2: 2023-09-20 | AL2: 2023-09-21 | AM2: 2023-09-22 | AN2: 2023-09-23 | AO2: 2023-09-24 | AP2: 2023-09-25 | AQ2: 2023-09-26 | AR2: 2023-09-27 | AS2: 2023-09-28 | AT2: 2023-09-29 | AU2: 2023-09-30 | AV2: 2023-10-01 | AW2: =#REF!+1 ->  | AX2: =AW2+1 ->  | BA2: =SUM(BA115,BA111,BA107,BA103,BA91,BA87,BA83,BA79,BA75,BA71,BA67,BA63,BA59,BA55,BA51,BA47,BA43,BA39,BA35,BA31,BA27,BA23,BA19,BA15,BA11,BA7)+SUM(BC4:BC115) -> 17229.77333
A3: Nom | B3: Prénom | C3: CDD - CDI | D3: QUALIFICATION | E3: Taux Horaire | F3: Commentaire | G3: Libellé | H3: =+H1 -> 2023-09-01 | I3: 1 | J3: 2 | K3: 3 | L3: 4 | M3: 5 | N3: 6 | O3: 7 | R3: =+R2 -> 2023-09-01 | S3: =+S2 -> 2023-09-02 | T3: 2023-09-03 | U3: 2023-09-04 | V3: 2023-09-05 | W3: 2023-09-06 | X3: 2023-09-07 | Y3: 2023-09-08 | Z3: 2023-09-09 | AA3: 2023-09-10 | AB3: 2023-09-11 | AC3: 2023-09-12 | AD3: 2023-09-13 | AE3: 2023-09-14 | AF3: 2023-09-15 | AG3: 2023-09-16 | AH3: 2023-09-17 | AI3: 2023-09-18 | AJ3: 2023-09-19 | AK3: 2023-09-20 | AL3: 2023-09-21 | AM3: 2023-09-22 | AN3: 2023-09-23 | AO3: 2023-09-24 | AP3: 2023-09-25 | AQ3: 2023-09-26 | AR3: 2023-09-27 | AS3: 2023-09-28 | AT3: 2023-09-29 | AU3: 2023-09-30 | AV3: 2023-10-01 | AX3: H travaillées mois | AY3: Libellé | AZ3: Total heures mois | BA3: Coût total mois | BB3: AVPP | BC3: Primes | BD3: justification H Plus et Primes
A4: OULAI GOUALI | B4: BOUDOU PAULINE | C4: CDI | D4: ASCA | E4: =VLOOKUP(D4,'Taux horaire'!$A$4:$B$31,2,FALSE) -> 11.79 | G4: HEURE CAT | H4: 65 | I4: 2.5 | J4: 2.5 | K4: 2.5 | L4: 2.5 | M4: 2.5 | N4: R | O4: R | R4: 3 | S4: =+$N4 -> R | T4: =+$O4 -> R | U4: 3 | V4: 3 | W4: 3 | X4: 3 | Y4: 3 | Z4: =+$N4 -> R | AA4: =+$O4 -> R | AB4: 3 | AC4: 3 | AD4: 3 | AE4: 3 | AF4: 3 | AG4: =+$N4 -> R | AH4: =+$O4 -> R | AI4: 3 | AJ4: 3 | AK4: 3 | AL4: 3 | AM4: 3 | AN4: =+$N4 -> R | AO4: =+$O4 -> R | AP4: 3 | AQ4: 3 | AR4: 3 | AS4: 3 | AT4: 3 | AU4: =+$N4 -> R | AV4: =+$O4 -> R | AW4: h contrat | AX4: =H4 -> 65 | AY4: HEURE CAT | AZ4: =+H4 -> 65 | BA4: =AZ4*E4 -> 766.35
C5: =+C4 -> CDI | D5: ASCA | E5: 11.79 | G5: H. ABS | AW5: h travaillable | AX5: =SUM(R4:AV4) -> 63 | AY5: H. ABS | AZ5: =SUM(R5:AV5) -> 0 | BA5: =AZ5*E5 -> 0
C6: CDI | D6: ASCA | E6: 11.79 | G6: H. SUP | AW6: h travaillées | AX6: =AX5-AZ5+AZ6 -> 63 | AY6: H. SUP / COMP | AZ6: =SUM(R6:AV6) -> 0 | BA6: =IF(H4<35*52/12,IF(BB6="O",AZ6*1.1*E6,AZ6*1.11*E6),AZ6*1.25*E6) -> 0 | BB6: =IF(C4="CDI",IF(AZ6<AZ4*0.1,"N","O"),"N") -> N
C7: CDI | D7: ASCA | E7: 11.79 | G7: MOTIFS | AW7: h du mois | AX7: =AX6 -> 63 | AY7: MOTIF/TOT MOB | BA7: =IF(AX6=0,0,BA4-BA5+BA6) -> 766.35
A8: BA | B8: MAHAMADOU | C8: CDI | D8: AQS1A | E8: =VLOOKUP(D8,'Taux horaire'!$A$4:$B$31,2,FALSE) -> 11.92 | G8: HEURE CAT | H8: =(SUBTOTAL(9,I8:O8))*52/12 -> 65 | I8: 3 | J8: 3 | K8: 3 | L8: 3 | M8: 3 | N8: R | O8: R | R8: =+$M8 -> 3 | S8: =+$N8 -> R | T8: =+$O8 -> R | U8: =+$I8 -> 3 | V8: =+$J8 -> 3 | W8: =+$K8 -> 3 | X8: =+$L8 -> 3 | Y8: =+$M8 -> 3 | Z8: =+$N8 -> R | AA8: =+$O8 -> R | AB8: =+$I8 -> 3 | AC8: =+$J8 -> 3 | AD8: =+$K8 -> 3 | AE8: =+$L8 -> 3 | AF8: =+$M8 -> 3 | AG8: =+$N8 -> R | AH8: =+$O8 -> R | AI8: =+$I8 -> 3 | AJ8: =+$J8 -> 3 | AK8: =+$K8 -> 3 | AL8: =+$L8 -> 3 | AM8: =+$M8 -> 3 | AN8: =+$N8 -> R | AO8: =+$O8 -> R | AP8: =+$I8 -> 3 | AQ8: =+$J8 -> 3 | AR8: =+$K8 -> 3 | AS8: =+$L8 -> 3 | AT8: =+$M8 -> 3 | AU8: =+$N8 -> R | AV8: =+$O8 -> R | AW8: h contrat | AX8: =H8 -> 65 | AY8: HEURE CAT | AZ8: =+H8 -> 65 | BA8: =AZ8*E8 -> 774.8
C9: =+C8 -> CDI | D9: AQS1A | E9: 11.92 | G9: H. ABS | AW9: h travaillable | AX9: =SUM(R8:AV8) -> 63 | AY9: H. ABS | AZ9: =SUM(R9:AV9) -> 0 | BA9: =AZ9*E9 -> 0
C10: CDI | D10: AQS1A | E10: 11.92 | G10: H. SUP | AW10: h travaillées | AX10: =AX9-AZ9+AZ10 -> 63 | AY10: H. SUP | AZ10: =SUM(R10:AV10) -> 0 | BA10: =IF(H8<35*52/12,IF(BB10="O",AZ10*1.1*E10,AZ10*1.11*E10),AZ10*1.25*E10) -> 0 | BB10: =IF(C8="CDI",IF(AZ10<AZ8*0.1,"N","O"),"N") -> N
C11: CDI | D11: AQS1A | E11: 11.92 | G11: MOTIFS | AW11: h du mois | AX11: =AX10 -> 63 | AY11: MOTIF/TOT MOB | BA11: =IF(AX10=0,0,BA8-BA9+BA10) -> 774.8
A12: BERRAHEL | B12: ZAHIA | C12: CDI | D12: ASCA | E12: =VLOOKUP(D12,'Taux horaire'!$A$4:$B$31,2,FALSE) -> 11.79 | G12: HEURE CAT | H12: =(SUBTOTAL(9,I12:O12))*52/12 -> 130 | I12: 6 | J12: 6 | K12: 6 | L12: 6 | M12: 6 | N12: R | O12: R | R12: =+$M12 -> 6 | S12: =+$N12 -> R | T12: =+$O12 -> R | U12: =+$I12 -> 6 | V12: =+$J12 -> 6 | W12: =+$K12 -> 6 | X12: =+$L12 -> 6 | Y12: =+$M12 -> 6 | Z12: =+$N12 -> R | AA12: =+$O12 -> R | AB12: =+$I12 -> 6 | AC12: =+$J12 -> 6 | AD12: =+$K12 -> 6 | AE12: =+$L12 -> 6 | AF12: =+$M12 -> 6 | AG12: =+$N12 -> R | AH12: =+$O12 -> R | AI12: =+$I12 -> 6 | AJ12: =+$J12 -> 6 | AK12: =+$K12 -> 6 | AL12: =+$L12 -> 6 | AM12: =+$M12 -> 6 | AN12: =+$N12 -> R | AO12: =+$O12 -> R | AP12: =+$I12 -> 6 | AQ12: =+$J12 -> 6 | AR12: =+$K12 -> 6 | AS12: =+$L12 -> 6 | AT12: =+$M12 -> 6 | AU12: =+$N12 -> R | AV12: =+$O12 -> R | AW12: h contrat | AX12: =H12 -> 130 | AY12: HEURE CAT | AZ12: =+H12 -> 130 | BA12: =AZ12*E12 -> 1532.7
C13: =+C12 -> CDI | D13: ASCA | E13: 11.79 | G13: H. ABS | AW13: h travaillable | AX13: =SUM(R12:AV12) -> 126 | AY13: H. ABS | AZ13: =SUM(R13:AV13) -> 0 | BA13: =AZ13*E13 -> 0
C14: CDI | D14: ASCA | E14: 11.79 | G14: H. SUP | AW14: h travaillées | AX14: =AX13-AZ13+AZ14 -> 126 | AY14: H. SUP | AZ14: =SUM(R14:AV14) -> 0 | BA14: =IF(H12<35*52/12,IF(BB14="O",AZ14*1.1*E14,AZ14*1.11*E14),AZ14*1.25*E14) -> 0 | BB14: =IF(C12="CDI",IF(AZ14<AZ12*0.1,"N","O"),"N") -> N
C15: CDI | D15: ASCA | E15: 11.79 | G15: MOTIFS | AW15: h du mois | AX15: =AX14 -> 126 | AY15: MOTIF/TOT MOB | BA15: =IF(AX14=0,0,BA12-BA13+BA14) -> 1532.7
A16: CHACHOUA | B16: MEBROUK | C16: CDI | D16: ASCA | E16: =VLOOKUP(D16,'Taux horaire'!$A$4:$B$31,2,FALSE) -> 11.79 | G16: HEURE CAT | H16: =(SUBTOTAL(9,I16:O16))*52/12 -> 65 | I16: 3 | J16: 3 | K16: 3 | L16: 3 | M16: 3 | N16: R | O16: R | R16: =+$M16 -> 3 | S16: =+$N16 -> R | T16: =+$O16 -> R | U16: =+$I16 -> 3 | V16: =+$J16 -> 3 | W16: =+$K16 -> 3 | X16: =+$L16 -> 3 | Y16: =+$M16 -> 3 | Z16: =+$N16 -> R | AA16: =+$O16 -> R | AB16: =+$I16 -> 3 | AC16: =+$J16 -> 3 | AD16: =+$K16 -> 3 | AE16: =+$L16 -> 3 | AF16: =+$M16 -> 3 | AG16: =+$N16 -> R | AH16: =+$O16 -> R | AI16: =+$I16 -> 3 | AJ16: =+$J16 -> 3 | AK16: =+$K16 -> 3 | AL16: =+$L16 -> 3 | AM16: =+$M16 -> 3 | AN16: =+$N16 -> R | AO16: =+$O16 -> R | AP16: =+$I16 -> 3 | AQ16: =+$J16 -> 3 | AR16: =+$K16 -> 3 | AS16: =+$L16 -> 3 | AT16: =+$M16 -> 3 | AU16: =+$N16 -> R | AV16: =+$O16 -> R | AW16: h contrat | AX16: =H16 -> 65 | AZ16: =+H16 -> 65 | BA16: =AZ16*E16 -> 766.35
C17: =+C16 -> CDI | D17: ASCA | E17: 11.79 | G17: H. ABS | AW17: h travaillable | AX17: =SUM(R16:AV16) -> 63 | AY17: H. ABS | AZ17: =SUM(R17:AV17) -> 0 | BA17: =AZ17*E17 -> 0
C18: CDI | D18: ASCA | E18: 11.79 | G18: H. SUP | AW18: h travaillées | AX18: =AX17-AZ17+AZ18 -> 63 | AY18: H. SUP | AZ18: =SUM(R18:AV18) -> 0 | BA18: =IF(H16<35*52/12,IF(BB18="O",AZ18*1.1*E18,AZ18*1.11*E18),AZ18*1.25*E18) -> 0 | BB18: =IF(C16="CDI",IF(AZ18<AZ16*0.1,"N","O"),"N") -> N
C19: CDI | D19: ASCA | E19: 11.79 | G19: MOTIFS | AW19: h du mois | AX19: =AX18 -> 63 | AY19: MOTIF/TOT MOB | BA19: =IF(AX18=0,0,BA16-BA17+BA18) -> 766.35
A20: CHIFOR | B20: MOHAMED | C20: CDI | D20: CE1 | E20: =VLOOKUP(D20,'Taux horaire'!$A$4:$B$31,2,FALSE) -> 13.55 | G20: HEURE CAT | H20: =(SUBTOTAL(9,I20:O20))*52/12 -> 65 | I20: 3 | J20: 3 | K20: 3 | L20: 3 | M20: 3 | N20: R | O20: R | R20: =+$M20 -> 3 | S20: =+$N20 -> R | T20: =+$O20 -> R | U20: =+$I20 -> 3 | V20: =+$J20 -> 3 | W20: =+$K20 -> 3 | X20: =+$L20 -> 3 | Y20: =+$M20 -> 3 | Z20: =+$N20 -> R | AA20: =+$O20 -> R | AB20: =+$I20 -> 3 | AC20: =+$J20 -> 3 | AD20: =+$K20 -> 3 | AE20: =+$L20 -> 3 | AF20: =+$M20 -> 3 | AG20: =+$N20 -> R | AH20: =+$O20 -> R | AI20: =+$I20 -> 3 | AJ20: =+$J20 -> 3 | AK20: =+$K20 -> 3 | AL20: =+$L20 -> 3 | AM20: =+$M20 -> 3 | AN20: =+$N20 -> R | AO20: =+$O20 -> R | AP20: =+$I20 -> 3 | AQ20: =+$J20 -> 3 | AR20: =+$K20 -> 3 | AS20: =+$L20 -> 3 | AT20: =+$M20 -> 3 | AU20: =+$N20 -> R | AV20: =+$O20 -> R | AW20: h contrat | AX20: =H20 -> 65 | AY20: HEURE CAT | AZ20: =+H20 -> 65 | BA20: =AZ20*E20 -> 880.75
C21: =+C20 -> CDI | D21: CE1 | E21: 13.55 | G21: H. ABS | R21: 3 | U21: 3 | V21: 3 | W21: 3 | X21: 3 | Y21: 3 | AB21: 3 | AC21: 3 | AD21: 3 | AE21: 3 | AF21: 3 | AI21: 3 | AJ21: 3 | AK21: 3 | AL21: 3 | AM21: 3 | AP21: 3 | AQ21: 3 | AR21: 3 | AS21: 3 | AT21: 3 | AW21: h travaillable | AX21: =SUM(R20:AV20) -> 63 | AY21: H. ABS | AZ21: =SUM(R21:AV21) -> 63 | BA21: =AZ21*E21 -> 853.65
C22: CDI | D22: CE1 | E22: 13.55 | G22: H. SUP | AW22: h travaillées | AX22: =AX21-AZ21+AZ22 -> 0 | AY22: H. SUP | AZ22: =SUM(R22:AV22) -> 0 | BA22: =IF(H20<35*52/12,IF(BB22="O",AZ22*1.1*E22,AZ22*1.11*E22),AZ22*1.25*E22) -> 0 | BB22: =IF(C20="CDI",IF(AZ22<AZ20*0.1,"N","O"),"N") -> N
C23: CDI | D23: CE1 | E23: 13.55 | G23: MOTIFS | R23: CP | U23: CP | V23: CP | W23: CP | X23: CP | Y23: CP | AB23: AANP | AC23: AANP | AD23: AANP | AE23: AANP | AF23: AANP | AI23: AANP | AJ23: AANP | AK23: AANP | AL23: AANP | AM23: AANP | AP23: AANP | AQ23: AANP | AR23: AANP | AS23: AANP | AT23: AANP | AW23: h du mois | AX23: =AX22 -> 0 | AY23: MOTIF/TOT MOB | BA23: =IF(AX22=0,0,BA20-BA21+BA22) -> 0
A24: DA SILVA SEMEDO | B24: JULIANA | C24: CDI | D24: ASCA | E24: =VLOOKUP(D24,'Taux horaire'!$A$4:$B$31,2,FALSE) -> 11.79 | G24: HEURE CAT | H24: =(SUBTOTAL(9,I24:O24))*52/12 -> 65 | I24: 3 | J24: 3 | K24: 3 | L24: 3 | M24: 3 | N24: R | O24: R | R24: 3 | S24: =+$N24 -> R | T24: =+$O24 -> R | U24: =+$I24 -> 3 | V24: =+$J24 -> 3 | W24: =+$K24 -> 3 | X24: =+$L24 -> 3 | Y24: 3 | Z24: =+$N24 -> R | AA24: =+$O24 -> R | AB24: =+$I24 -> 3 | AC24: =+$J24 -> 3 | AD24: =+$K24 -> 3 | AE24: =+$L24 -> 3 | AF24: 3 | AG24: =+$N24 -> R | AH24: =+$O24 -> R | AI24: =+$I24 -> 3 | AJ24: =+$J24 -> 3 | AK24: =+$K24 -> 3 | AL24: =+$L24 -> 3 | AM24: 3 | AN24: =+$N24 -> R | AO24: =+$O24 -> R | AP24: =+$I24 -> 3 | AQ24: =+$J24 -> 3 | AR24: =+$K24 -> 3 | AS24: =+$L24 -> 3 | AT24: 3 | AU24: =+$N24 -> R | AV24: =+$O24 -> R | AW24: h contrat | AX24: =H24 -> 65 | AY24: HEURE CAT | AZ24: =+H24 -> 65 | BA24: =AZ24*E24 -> 766.35
C25: =+C24 -> CDI | D25: ASCA | E25: 11.79 | G25: H. ABS | AW25: h travaillable | AX25: =SUM(R24:AV24) -> 63 | AY25: H. ABS | AZ25: =SUM(R25:AV25) -> 0 | BA25: =AZ25*E25 -> 0
C26: CDI | D26: ASCA | E26: 11.79 | G26: H. SUP | AW26: h travaillées | AX26: =AX25-AZ25+AZ26 -> 63 | AY26: H. SUP | AZ26: =SUM(R26:AV26) -> 0 | BA26: =IF(H24<35*52/12,IF(BB26="O",AZ26*1.1*E26,AZ26*1.11*E26),AZ26*1.25*E26) -> 0 | BB26: =IF(C24="CDI",IF(AZ26<AZ24*0.1,"N","O"),"N") -> N
C27: CDI | D27: ASCA | E27: 11.79 | G27: MOTIFS | AW27: h du mois | AX27: =AX26 -> 63 | AY27: MOTIF/TOT MOB | BA27: =IF(AX26=0,0,BA24-BA25+BA26) -> 766.35
A28: DASH | B28: NITHYA | C28: CDI | D28: ASCA | E28: =VLOOKUP(D28,'Taux horaire'!$A$4:$B$31,2,FALSE) -> 11.79 | G28: HEURE CAT | H28: =(SUBTOTAL(9,I28:O28))*52/12 -> 130 | I28: 6 | J28: 6 | K28: 6 | L28: 6 | M28: 6 | N28: R | O28: R | R28: =+$M28 -> 6 | S28: =+$N28 -> R | T28: =+$O28 -> R | U28: =+$I28 -> 6 | V28: =+$J28 -> 6 | W28: =+$K28 -> 6 | X28: =+$L28 -> 6 | Y28: =+$M28 -> 6 | Z28: =+$N28 -> R | AA28: =+$O28 -> R | AB28: =+$I28 -> 6 | AC28: =+$J28 -> 6 | AD28: =+$K28 -> 6 | AE28: =+$L28 -> 6 | AF28: =+$M28 -> 6 | AG28: =+$N28 -> R | AH28: =+$O28 -> R | AI28: =+$I28 -> 6 | AJ28: =+$J28 -> 6 | AK28: =+$K28 -> 6 | AL28: =+$L28 -> 6 | AM28: =+$M28 -> 6 | AN28: =+$N28 -> R | AO28: =+$O28 -> R | AP28: =+$I28 -> 6 | AQ28: =+$J28 -> 6 | AR28: =+$K28 -> 6 | AS28: =+$L28 -> 6 | AT28: =+$M28 -> 6 | AU28: =+$N28 -> R | AV28: =+$O28 -> R | AW28: h contrat | AX28: =H28 -> 130 | AY28: HEURE CAT | AZ28: =+H28 -> 130 | BA28: =AZ28*E28 -> 1532.7
C29: =+C28 -> CDI | D29: ASCA | E29: 11.79 | G29: H. ABS | AW29: h travaillable | AX29: =SUM(R28:AV28) -> 126 | AY29: H. ABS | AZ29: =SUM(R29:AV29) -> 0 | BA29: =AZ29*E29 -> 0
C30: CDI | D30: ASCA | E30: 11.79 | G30: H. SUP | AW30: h travaillées | AX30: =AX29-AZ29+AZ30 -> 126 | AY30: H. SUP | AZ30: =SUM(R30:AV30) -> 0 | BA30: =IF(H28<35*52/12,IF(BB30="O",AZ30*1.1*E30,AZ30*1.11*E30),AZ30*1.25*E30) -> 0 | BB30: =IF(C28="CDI",IF(AZ30<AZ28*0.1,"N","O"),"N") -> N
C31: CDI | D31: ASCA | E31: 11.79 | G31: MOTIFS | AW31: h du mois | AX31: =AX30 -> 126 | AY31: MOTIF/TOT MOB | BA31: =IF(AX30=0,0,BA28-BA29+BA30) -> 1532.7
A32: DOS SANTOS CARVALHERO | B32: MARIA HELENA | C32: CDI | D32: ASCA | E32: =VLOOKUP(D32,'Taux horaire'!$A$4:$B$31,2,FALSE) -> 11.79 | G32: HEURE CAT | H32: =(SUBTOTAL(9,I32:O32))*52/12 -> 65 | I32: 3 | J32: 3 | K32: 3 | L32: 3 | M32: 3 | N32: R | O32: R | R32: =+$M32 -> 3 | S32: =+$N32 -> R | T32: =+$O32 -> R | U32: =+$I32 -> 3 | V32: =+$J32 -> 3 | W32: =+$K32 -> 3 | X32: =+$L32 -> 3 | Y32: =+$M32 -> 3 | Z32: =+$N32 -> R | AA32: =+$O32 -> R | AB32: =+$I32 -> 3 | AC32: =+$J32 -> 3 | AD32: =+$K32 -> 3 | AE32: =+$L32 -> 3 | AF32: =+$M32 -> 3 | AG32: =+$N32 -> R | AH32: =+$O32 -> R | AI32: =+$I32 -> 3 | AJ32: =+$J32 -> 3 | AK32: =+$K32 -> 3 | AL32: =+$L32 -> 3 | AM32: =+$M32 -> 3 | AN32: =+$N32 -> R | AO32: =+$O32 -> R | AP32: =+$I32 -> 3 | AQ32: =+$J32 -> 3 | AR32: =+$K32 -> 3 | AS32: =+$L32 -> 3 | AT32: =+$M32 -> 3 | AU32: =+$N32 -> R | AV32: =+$O32 -> R | AW32: h contrat | AX32: =H32 -> 65 | AY32: HEURE CAT | AZ32: =+H32 -> 65 | BA32: =AZ32*E32 -> 766.35
C33: =+C32 -> CDI | D33: ASCA | E33: 11.79 | G33: H. ABS | AW33: h travaillable | AX33: =SUM(R32:AV32) -> 63 | AY33: H. ABS | AZ33: =SUM(R33:AV33) -> 0 | BA33: =AZ33*E33 -> 0
C34: CDI | D34: ASCA | E34: 11.79 | G34: H. SUP | AW34: h travaillées | AX34: =AX33-AZ33+AZ34 -> 63 | AY34: H. SUP | AZ34: =SUM(R34:AV34) -> 0 | BA34: =IF(H32<35*52/12,IF(BB34="O",AZ34*1.1*E34,AZ34*1.11*E34),AZ34*1.25*E34) -> 0 | BB34: =IF(C32="CDI",IF(AZ34<AZ32*0.1,"N","O"),"N") -> N
C35: CDI | D35: ASCA | E35: 11.79 | G35: MOTIFS | AW35: h du mois | AX35: =AX34 -> 63 | AY35: MOTIF/TOT MOB | BA35: =IF(AX34=0,0,BA32-BA33+BA34) -> 766.35
A36: GOZUKARA | B36: FIDAN | C36: CDI | D36: ASCA | E36: =VLOOKUP(D36,'Taux horaire'!$A$4:$B$31,2,FALSE) -> 11.79 | F36: MALADIE PRO | G36: HEURE CAT | H36: =(SUBTOTAL(9,I36:O36))*52/12 -> 54.16666667 | I36: 2.5 | J36: 2.5 | K36: 2.5 | L36: 2.5 | M36: 2.5 | N36: R | O36: R | R36: =+$M36 -> 2.5 | S36: =+$N36 -> R | T36: =+$O36 -> R | U36: =+$I36 -> 2.5 | V36: =+$J36 -> 2.5 | W36: =+$K36 -> 2.5 | X36: =+$L36 -> 2.5 | Y36: =+$M36 -> 2.5 | Z36: =+$N36 -> R | AA36: =+$O36 -> R | AB36: =+$I36 -> 2.5 | AC36: =+$J36 -> 2.5 | AD36: =+$K36 -> 2.5 | AE36: =+$L36 -> 2.5 | AF36: =+$M36 -> 2.5 | AG36: =+$N36 -> R | AH36: =+$O36 -> R | AI36: =+$I36 -> 2.5 | AJ36: =+$J36 -> 2.5 | AK36: =+$K36 -> 2.5 | AL36: =+$L36 -> 2.5 | AM36: =+$M36 -> 2.5 | AN36: =+$N36 -> R | AO36: =+$O36 -> R | AP36: =+$I36 -> 2.5 | AQ36: =+$J36 -> 2.5 | AR36: =+$K36 -> 2.5 | AS36: =+$L36 -> 2.5 | AT36: =+$M36 -> 2.5 | AU36: =+$N36 -> R | AV36: =+$O36 -> R | AW36: h contrat | AX36: =H36 -> 54.16666667 | AY36: HEURE CAT | AZ36: =+H36 -> 54.16666667 | BA36: =AZ36*E36 -> 638.625
C37: =+C36 -> CDI | D37: ASCA | E37: 11.79 | F37: jusqua'au 30/09 | G37: H. ABS | R37: 2.5 | U37: 2.5 | V37: 2.5 | W37: 2.5 | X37: 2.5 | Y37: 2.5 | AB37: 2.5 | AC37: 2.5 | AD37: 2.5 | AE37: 2.5 | AF37: 2.5 | AI37: 2.5 | AJ37: 2.5 | AK37: 2.5 | AL37: 2.5 | AM37: 2.5 | AP37: 2.5 | AQ37: 2.5 | AR37: 2.5 | AS37: 2.5 | AT37: 2.5 | AW37: h travaillable | AX37: =SUM(R36:AV36) -> 52.5 | AY37: H. ABS | AZ37: =SUM(R37:AV37) -> 52.5 | BA37: =AZ37*E37 -> 618.975
C38: CDI | D38: ASCA | E38: 11.79 | G38: H. SUP | AW38: h travaillées | AX38: =AX37-AZ37+AZ38 -> 0 | AY38: H. SUP | AZ38: =SUM(R38:AV38) -> 0 | BA38: =IF(H36<35*52/12,IF(BB38="O",AZ38*1.1*E38,AZ38*1.11*E38),AZ38*1.25*E38) -> 0 | BB38: =IF(C36="CDI",IF(AZ38<AZ36*0.1,"N","O"),"N") -> N
C39: CDI | D39: ASCA | E39: 11.79 | G39: MOTIFS | R39: MAL | U39: MAL | V39: MAL | W39: MAL | X39: MAL | Y39: MAL | AB39: MAL | AC39: MAL | AD39: MAL | AE39: MAL | AF39: MAL | AI39: MAL | AJ39: MAL | AK39: MAL | AL39: MAL | AM39: MAL | AP39: MAL | AQ39: MAL | AR39: MAL | AS39: MAL | AT39: MAL | AW39: h du mois | AX39: =AX38 -> 0 | AY39: MOTIF/TOT MOB | BA39: =IF(AX38=0,0,BA36-BA37+BA38) -> 0
D40: ASPA | E40: =VLOOKUP(D40,'Taux horaire'!$A$4:$B$31,2,FALSE) -> 11.75 | G40: HEURE CAT | H40: =(SUBTOTAL(9,I40:O40))*52/12 -> 0 | N40: R | O40: R | R40: =+$M40 -> 0 | S40: =+$N40 -> R | T40: =+$O40 -> R | U40: =+$I40 -> 0 | V40: =+$J40 -> 0 | W40: =+$K40 -> 0 | X40: =+$L40 -> 0 | Y40: =+$M40 -> 0 | Z40: =+$N40 -> R | AA40: =+$O40 -> R | AB40: 3 | AC40: 3 | AD40: 3 | AE40: 3 | AF40: 3 | AG40: =+$N40 -> R | AH40: =+$O40 -> R | AI40: 3 | AJ40: 3 | AK40: 3 | AL40: 3 | AM40: 3 | AN40: =+$N40 -> R | AO40: =+$O40 -> R | AP40: 3 | AQ40: 3 | AR40: 3 | AS40: 3 | AT40: 3 | AU40: =+$N40 -> R | AV40: =+$O40 -> R | AW40: h contrat | AX40: =H40 -> 0 | AY40: HEURE CAT | AZ40: =+H40 -> 0 | BA40: =AZ40*E40 -> 0
C41: =+C40 -> 0 | D41: ASPA | E41: 11.75 | G41: H. ABS | AW41: h travaillable | AX41: =SUM(R40:AV40) -> 45 | AY41: H. ABS | AZ41: =SUM(R41:AV41) -> 0 | BA41: =AZ41*E41 -> 0
C42: 0 | D42: ASPA | E42: 11.75 | G42: H. SUP | AW42: h travaillées | AX42: =AX41-AZ41+AZ42 -> 45 | AY42: H. SUP | AZ42: =SUM(R42:AV42) -> 0 | BA42: =IF(H40<35*52/12,IF(BB42="O",AZ42*1.1*E42,AZ42*1.11*E42),AZ42*1.25*E42) -> 0 | BB42: =IF(C40="CDI",IF(AZ42<AZ40*0.1,"N","O"),"N") -> N
C43: 0 | D43: ASPA | E43: 11.75 | G43: MOTIFS | AW43: h du mois | AX43: =AX42 -> 45 | AY43: MOTIF/TOT MOB | BA43: =IF(AX42=0,0,BA40-BA41+BA42) -> 0
A44: LOPES DA MOURA | B44: GRACINDA | C44: CDI | D44: ASCA | E44: =VLOOKUP(D44,'Taux horaire'!$A$4:$B$31,2,FALSE) -> 11.79 | G44: HEURE CAT | H44: =(SUBTOTAL(9,I44:O44))*52/12 -> 65 | I44: 3 | J44: 3 | K44: 3 | L44: 3 | M44: 3 | N44: R | O44: R | R44: =+$M44 -> 3 | S44: =+$N44 -> R | T44: =+$O44 -> R | U44: =+$I44 -> 3 | V44: =+$J44 -> 3 | W44: =+$K44 -> 3 | X44: =+$L44 -> 3 | Y44: =+$M44 -> 3 | Z44: =+$N44 -> R | AA44: =+$O44 -> R | AB44: =+$I44 -> 3 | AC44: =+$J44 -> 3 | AD44: =+$K44 -> 3 | AE44: =+$L44 -> 3 | AF44: =+$M44 -> 3 | AG44: =+$N44 -> R | AH44: =+$O44 -> R | AI44: =+$I44 -> 3 | AJ44: =+$J44 -> 3 | AK44: =+$K44 -> 3 | AL44: =+$L44 -> 3 | AM44: =+$M44 -> 3 | AN44: =+$N44 -> R | AO44: =+$O44 -> R | AP44: =+$I44 -> 3 | AQ44: =+$J44 -> 3 | AR44: =+$K44 -> 3 | AS44: =+$L44 -> 3 | AT44: =+$M44 -> 3 | AU44: =+$N44 -> R | AV44: =+$O44 -> R | AW44: h contrat | AX44: =H44 -> 65 | AY44: HEURE CAT | AZ44: =+H44 -> 65 | BA44: =AZ44*E44 -> 766.35
C45: =+C44 -> CDI | D45: ASCA | E45: 11.79 | G45: H. ABS | AW45: h travaillable | AX45: =SUM(R44:AV44) -> 63 | AY45: H. ABS | AZ45: =SUM(R45:AV45) -> 0 | BA45: =AZ45*E45 -> 0
C46: CDI | D46: ASCA | E46: 11.79 | G46: H. SUP | AW46: h travaillées | AX46: =AX45-AZ45+AZ46 -> 63 | AY46: H. SUP | AZ46: =SUM(R46:AV46) -> 0 | BA46: =IF(H44<35*52/12,IF(BB46="O",AZ46*1.1*E46,AZ46*1.11*E46),AZ46*1.25*E46) -> 0 | BB46: =IF(C44="CDI",IF(AZ46<AZ44*0.1,"N","O"),"N") -> N
C47: CDI | D47: ASCA | E47: 11.79 | G47: MOTIFS | AW47: h du mois | AX47: =AX46 -> 63 | AY47: MOTIF/TOT MOB | BA47: =IF(AX46=0,0,BA44-BA45+BA46) -> 766.35
A48: MAALAOUI | B48: FADHILA | C48: CDI | D48: ASCA | E48: =VLOOKUP(D48,'Taux horaire'!$A$4:$B$31,2,FALSE) -> 11.79 | G48: HEURE CAT | H48: =(SUBTOTAL(9,I48:O48))*52/12 -> 75.83333333 | I48: 3.5 | J48: 3.5 | K48: 3.5 | L48: 3.5 | M48: 3.5 | N48: R | O48: R | R48: =+$M48 -> 3.5 | S48: =+$N48 -> R | T48: =+$O48 -> R | U48: =+$I48 -> 3.5 | V48: =+$J48 -> 3.5 | W48: =+$K48 -> 3.5 | X48: =+$L48 -> 3.5 | Y48: =+$M48 -> 3.5 | Z48: =+$N48 -> R | AA48: =+$O48 -> R | AB48: =+$I48 -> 3.5 | AC48: =+$J48 -> 3.5 | AD48: =+$K48 -> 3.5 | AE48: =+$L48 -> 3.5 | AF48: =+$M48 -> 3.5 | AG48: =+$N48 -> R | AH48: =+$O48 -> R | AI48: =+$I48 -> 3.5 | AJ48: =+$J48 -> 3.5 | AK48: =+$K48 -> 3.5 | AL48: =+$L48 -> 3.5 | AM48: =+$M48 -> 3.5 | AN48: =+$N48 -> R | AO48: =+$O48 -> R | AP48: =+$I48 -> 3.5 | AQ48: =+$J48 -> 3.5 | AR48: =+$K48 -> 3.5 | AS48: =+$L48 -> 3.5 | AT48: =+$M48 -> 3.5 | AU48: =+$N48 -> R | AV48: =+$O48 -> R | AW48: h contrat | AX48: =H48 -> 75.83333333 | AY48: HEURE CAT | AZ48: =+H48 -> 75.83333333 | BA48: =AZ48*E48 -> 894.075
C49: =+C48 -> CDI | D49: ASCA | E49: 11.79 | G49: H. ABS | AW49: h travaillable | AX49: =SUM(R48:AV48) -> 73.5 | AY49: H. ABS | AZ49: =SUM(R49:AV49) -> 0 | BA49: =AZ49*E49 -> 0
C50: CDI | D50: ASCA | E50: 11.79 | G50: H. SUP | AW50: h travaillées | AX50: =AX49-AZ49+AZ50 -> 73.5 | AY50: H. SUP | AZ50: =SUM(R50:AV50) -> 0 | BA50: =IF(H48<35*52/12,IF(BB50="O",AZ50*1.1*E50,AZ50*1.11*E50),AZ50*1.25*E50) -> 0 | BB50: =IF(C48="CDI",IF(AZ50<AZ48*0.1,"N","O"),"N") -> N
C51: CDI | D51: ASCA | E51: 11.79 | G51: MOTIFS | AW51: h du mois | AX51: =AX50 -> 73.5 | AY51: MOTIF/TOT MOB | BA51: =IF(AX50=0,0,BA48-BA49+BA50) -> 894.075
A52: NOUALI | B52: SAIDA | C52: CDI | D52: ASCA | E52: =VLOOKUP(D52,'Taux horaire'!$A$4:$B$31,2,FALSE) -> 11.79 | G52: HEURE CAT | H52: =(SUBTOTAL(9,I52:O52))*52/12 -> 65 | I52: 3 | J52: 3 | K52: 3 | L52: 3 | M52: 3 | N52: R | O52: R | R52: =+$M52 -> 3 | S52: =+$N52 -> R | T52: =+$O52 -> R | U52: =+$I52 -> 3 | V52: =+$J52 -> 3 | W52: =+$K52 -> 3 | X52: =+$L52 -> 3 | Y52: =+$M52 -> 3 | Z52: =+$N52 -> R | AA52: =+$O52 -> R | AB52: =+$I52 -> 3 | AC52: =+$J52 -> 3 | AD52: =+$K52 -> 3 | AE52: =+$L52 -> 3 | AF52: =+$M52 -> 3 | AG52: =+$N52 -> R | AH52: =+$O52 -> R | AI52: =+$I52 -> 3 | AJ52: =+$J52 -> 3 | AK52: =+$K52 -> 3 | AL52: =+$L52 -> 3 | AM52: =+$M52 -> 3 | AN52: =+$N52 -> R | AO52: =+$O52 -> R | AP52: =+$I52 -> 3 | AQ52: =+$J52 -> 3 | AR52: =+$K52 -> 3 | AS52: =+$L52 -> 3 | AT52: =+$M52 -> 3 | AU52: =+$N52 -> R | AV52: =+$O52 -> R | AW52: h contrat | AX52: =H52 -> 65 | AY52: HEURE CAT | AZ52: =+H52 -> 65 | BA52: =AZ52*E52 -> 766.35
C53: =+C52 -> CDI | D53: ASCA | E53: 11.79 | G53: H. ABS | AW53: h travaillable | AX53: =SUM(R52:AV52) -> 63 | AY53: H. ABS | AZ53: =SUM(R53:AV53) -> 0 | BA53: =AZ53*E53 -> 0
C54: CDI | D54: ASCA | E54: 11.79 | G54: H. SUP | AW54: h travaillées | AX54: =AX53-AZ53+AZ54 -> 63 | AY54: H. SUP | AZ54: =SUM(R54:AV54) -> 0 | BA54: =IF(H52<35*52/12,IF(BB54="O",AZ54*1.1*E54,AZ54*1.11*E54),AZ54*1.25*E54) -> 0 | BB54: =IF(C52="CDI",IF(AZ54<AZ52*0.1,"N","O"),"N") -> N
C55: CDI | D55: ASCA | E55: 11.79 | G55: MOTIFS | AW55: h du mois | AX55: =AX54 -> 63 | AY55: MOTIF/TOT MOB | BA55: =IF(AX54=0,0,BA52-BA53+BA54) -> 766.35
A56: MESSI | B56: NATHALIE | C56: CDI | D56: MP1 | E56: 13.18 | G56: HEURE CAT | H56: =(SUBTOTAL(9,I56:O56))*52/12 -> 151.6666667 | I56: 7 | J56: 7 | K56: 7 | L56: 7 | M56: 7 | N56: R | O56: R | R56: =+$M56 -> 7 | S56: =+$N56 -> R | T56: =+$O56 -> R | U56: =+$I56 -> 7 | V56: =+$J56 -> 7 | W56: =+$K56 -> 7 | X56: =+$L56 -> 7 | Y56: =+$M56 -> 7 | Z56: =+$N56 -> R | AA56: =+$O56 -> R | AB56: =+$I56 -> 7 | AC56: =+$J56 -> 7 | AD56: =+$K56 -> 7 | AE56: =+$L56 -> 7 | AF56: =+$M56 -> 7 | AG56: =+$N56 -> R | AH56: =+$O56 -> R | AI56: =+$I56 -> 7 | AJ56: =+$J56 -> 7 | AK56: =+$K56 -> 7 | AL56: =+$L56 -> 7 | AM56: =+$M56 -> 7 | AN56: =+$N56 -> R | AO56: =+$O56 -> R | AP56: =+$I56 -> 7 | AQ56: =+$J56 -> 7 | AR56: =+$K56 -> 7 | AS56: =+$L56 -> 7 | AT56: =+$M56 -> 7 | AU56: =+$N56 -> R | AV56: =+$O56 -> R | AW56: h contrat | AX56: =H56 -> 151.6666667 | AY56: HEURE CAT | AZ56: =+H56 -> 151.6666667 | BA56: =AZ56*E56 -> 1998.966667
C57: =+C56 -> CDI | D57: MP1 | E57: 13.18 | G57: H. ABS | AW57: h travaillable | AX57: =SUM(R56:AV56) -> 147 | AY57: H. ABS | AZ57: =SUM(R57:AV57) -> 0 | BA57: =AZ57*E57 -> 0
C58: CDI | D58: MP1 | E58: 13.18 | G58: H. SUP | AW58: h travaillées | AX58: =AX57-AZ57+AZ58 -> 147 | AY58: H. SUP | AZ58: =SUM(R58:AV58) -> 0 | BA58: =IF(H56<35*52/12,IF(BB58="O",AZ58*1.1*E58,AZ58*1.11*E58),AZ58*1.25*E58) -> 0 | BB58: =IF(C56="CDI",IF(AZ58<AZ56*0.1,"N","O"),"N") -> N
C59: CDI | D59: MP1 | E59: 13.18 | G59: MOTIFS | AW59: h du mois | AX59: =AX58 -> 147 | AY59: MOTIF/TOT MOB | BA59: =IF(AX58=0,0,BA56-BA57+BA58) -> 1998.966667
A60: MLADENOVIC | B60: BRANKA | C60: CDI | D60: CE1 | E60: =VLOOKUP(D60,'Taux horaire'!$A$4:$B$31,2,FALSE) -> 13.55 | G60: HEURE CAT | H60: =(SUBTOTAL(9,I60:O60))*52/12 -> 151.6666667 | I60: 7 | J60: 7 | K60: 7 | L60: 7 | M60: 7 | N60: R | O60: R | R60: =+$M60 -> 7 | S60: =+$N60 -> R | T60: =+$O60 -> R | U60: =+$I60 -> 7 | V60: =+$J60 -> 7 | W60: =+$K60 -> 7 | X60: =+$L60 -> 7 | Y60: =+$M60 -> 7 | Z60: =+$N60 -> R | AA60: =+$O60 -> R | AB60: =+$I60 -> 7 | AC60: =+$J60 -> 7 | AD60: =+$K60 -> 7 | AE60: =+$L60 -> 7 | AF60: =+$M60 -> 7 | AG60: =+$N60 -> R | AH60: =+$O60 -> R | AI60: =+$I60 -> 7 | AJ60: =+$J60 -> 7 | AK60: =+$K60 -> 7 | AL60: =+$L60 -> 7 | AM60: =+$M60 -> 7 | AN60: =+$N60 -> R | AO60: =+$O60 -> R | AP60: =+$I60 -> 7 | AQ60: =+$J60 -> 7 | AR60: =+$K60 -> 7 | AS60: =+$L60 -> 7 | AT60: =+$M60 -> 7 | AU60: =+$N60 -> R | AV60: =+$O60 -> R | AW60: h contrat | AX60: =H60 -> 151.6666667 | AY60: HEURE CAT | AZ60: =+H60 -> 151.6666667 | BA60: =AZ60*E60 -> 2055.083333
C61: =+C60 -> CDI | D61: CE1 | E61: 13.55 | G61: H. ABS | AW61: h travaillable | AX61: =SUM(R60:AV60) -> 147 | AY61: H. ABS | AZ61: =SUM(R61:AV61) -> 0 | BA61: =AZ61*E61 -> 0
C62: CDI | D62: CE1 | E62: 13.55 | G62: H. SUP | AW62: h travaillées | AX62: =AX61-AZ61+AZ62 -> 147 | AY62: H. SUP | AZ62: =SUM(R62:AV62) -> 0 | BA62: =IF(H60<35*52/12,IF(BB62="O",AZ62*1.1*E62,AZ62*1.11*E62),AZ62*1.25*E62) -> 0 | BB62: =IF(C60="CDI",IF(AZ62<AZ60*0.1,"N","O"),"N") -> N
C63: CDI | D63: CE1 | E63: 13.55 | G63: MOTIFS | AW63: h du mois | AX63: =AX62 -> 147 | AY63: MOTIF/TOT MOB | BA63: =IF(AX62=0,0,BA60-BA61+BA62) -> 2055.083333
A64: SACKO | B64: MAHAMADOU | C64: CDI | D64: ASCA | E64: =VLOOKUP(D64,'Taux horaire'!$A$4:$B$31,2,FALSE) -> 11.79 | G64: HEURE CAT | H64: =(SUBTOTAL(9,I64:O64))*52/12 -> 65 | I64: 3 | J64: 3 | K64: 3 | L64: 3 | M64: 3 | N64: R | O64: R | R64: =+$M64 -> 3 | S64: =+$N64 -> R | T64: =+$O64 -> R | U64: =+$I64 -> 3 | V64: =+$J64 -> 3 | W64: =+$K64 -> 3 | X64: =+$L64 -> 3 | Y64: =+$M64 -> 3 | Z64: =+$N64 -> R | AA64: =+$O64 -> R | AB64: =+$I64 -> 3 | AC64: =+$J64 -> 3 | AD64: =+$K64 -> 3 | AE64: =+$L64 -> 3 | AF64: =+$M64 -> 3 | AG64: =+$N64 -> R | AH64: =+$O64 -> R | AI64: =+$I64 -> 3 | AJ64: =+$J64 -> 3 | AK64: =+$K64 -> 3 | AL64: =+$L64 -> 3 | AM64: =+$M64 -> 3 | AN64: =+$N64 -> R | AO64: =+$O64 -> R | AP64: =+$I64 -> 3 | AQ64: =+$J64 -> 3 | AR64: =+$K64 -> 3 | AS64: =+$L64 -> 3 | AT64: =+$M64 -> 3 | AU64: =+$N64 -> R | AV64: =+$O64 -> R | AW64: h contrat | AX64: =H64 -> 65 | AY64: HEURE CAT | AZ64: =+H64 -> 65 | BA64: =AZ64*E64 -> 766.35
C65: =+C64 -> CDI | D65: ASCA | E65: 11.79 | G65: H. ABS | AW65: h travaillable | AX65: =SUM(R64:AV64) -> 63 | AY65: H. ABS | AZ65: =SUM(R65:AV65) -> 0 | BA65: =AZ65*E65 -> 0
C66: CDI | D66: ASCA | E66: 11.79 | G66: H. SUP | AW66: h travaillées | AX66: =AX65-AZ65+AZ66 -> 63 | AY66: H. SUP | AZ66: =SUM(R66:AV66) -> 0 | BA66: =IF(H64<35*52/12,IF(BB66="O",AZ66*1.1*E66,AZ66*1.11*E66),AZ66*1.25*E66) -> 0 | BB66: =IF(C64="CDI",IF(AZ66<AZ64*0.1,"N","O"),"N") -> N
C67: CDI | D67: ASCA | E67: 11.79 | G67: MOTIFS | AW67: h du mois | AX67: =AX66 -> 63 | AY67: MOTIF/TOT MOB | BA67: =IF(AX66=0,0,BA64-BA65+BA66) -> 766.35
A68: SIMAGA | B68: ANSOUMANY | C68: CDI | D68: ASCA | E68: =VLOOKUP(D68,'Taux horaire'!$A$4:$B$31,2,FALSE) -> 11.79 | G68: HEURE CAT | H68: =(SUBTOTAL(9,I68:O68))*52/12 -> 69.33333333 | I68: 3 | J68: 3 | K68: 3 | L68: 3 | M68: 4 | N68: R | O68: R | R68: =+$M68 -> 4 | S68: =+$N68 -> R | T68: =+$O68 -> R | U68: =+$I68 -> 3 | V68: =+$J68 -> 3 | W68: =+$K68 -> 3 | X68: =+$L68 -> 3 | Y68: =+$M68 -> 4 | Z68: =+$N68 -> R | AA68: =+$O68 -> R | AB68: =+$I68 -> 3 | AC68: =+$J68 -> 3 | AD68: =+$K68 -> 3 | AE68: =+$L68 -> 3 | AF68: =+$M68 -> 4 | AG68: =+$N68 -> R | AH68: =+$O68 -> R | AI68: =+$I68 -> 3 | AJ68: =+$J68 -> 3 | AK68: =+$K68 -> 3 | AL68: =+$L68 -> 3 | AM68: =+$M68 -> 4 | AN68: =+$N68 -> R | AO68: =+$O68 -> R | AP68: =+$I68 -> 3 | AQ68: =+$J68 -> 3 | AR68: =+$K68 -> 3 | AS68: =+$L68 -> 3 | AT68: =+$M68 -> 4 | AU68: =+$N68 -> R | AV68: =+$O68 -> R | AW68: h contrat | AX68: =H68 -> 69.33333333 | AY68: HEURE CAT | AZ68: =+H68 -> 69.33333333 | BA68: =AZ68*E68 -> 817.44
C69: =+C68 -> CDI | D69: ASCA | E69: 11.79 | G69: H. ABS | R69: 1 | Y69: 1 | AF69: 1 | AM69: 1 | AT69: 1 | AW69: h travaillable | AX69: =SUM(R68:AV68) -> 68 | AY69: H. ABS | AZ69: =SUM(R69:AV69) -> 5 | BA69: =AZ69*E69 -> 58.95
C70: CDI | D70: ASCA | E70: 11.79 | G70: H. SUP | AW70: h travaillées | AX70: =AX69-AZ69+AZ70 -> 63 | AY70: H. SUP | AZ70: =SUM(R70:AV70) -> 0 | BA70: =IF(H68<35*52/12,IF(BB70="O",AZ70*1.1*E70,AZ70*1.11*E70),AZ70*1.25*E70) -> 0 | BB70: =IF(C68="CDI",IF(AZ70<AZ68*0.1,"N","O"),"N") -> N
C71: =+C70 -> CDI | D71: =+D70 -> ASCA | E71: =+E70 -> 11.79 | G71: MOTIFS | R71: ABI | Y71: ABI | AF71: ABI | AM71: ABI | AT71: ABI | AW71: h du mois | AX71: =AX70 -> 63 | AY71: MOTIF/TOT MOB | BA71: =IF(AX70=0,0,BA68-BA69+BA70) -> 758.49
A72: TANDIA | B72: MAMEDY | C72: CDI | D72: ASCA | E72: =VLOOKUP(D72,'Taux horaire'!$A$4:$B$31,2,FALSE) -> 11.79 | G72: HEURE CAT | H72: =(SUBTOTAL(9,I72:O72))*52/12 -> 54.16666667 | I72: 2.5 | J72: 2.5 | K72: 2.5 | L72: 2.5 | M72: 2.5 | N72: R | O72: R | R72: =+$M72 -> 2.5 | S72: =+$N72 -> R | T72: =+$O72 -> R | U72: =+$I72 -> 2.5 | V72: =+$J72 -> 2.5 | W72: =+$K72 -> 2.5 | X72: =+$L72 -> 2.5 | Y72: =+$M72 -> 2.5 | Z72: =+$N72 -> R | AA72: =+$O72 -> R | AB72: =+$I72 -> 2.5 | AC72: =+$J72 -> 2.5 | AD72: =+$K72 -> 2.5 | AE72: =+$L72 -> 2.5 | AF72: =+$M72 -> 2.5 | AG72: =+$N72 -> R | AH72: =+$O72 -> R | AI72: =+$I72 -> 2.5 | AJ72: =+$J72 -> 2.5 | AK72: =+$K72 -> 2.5 | AL72: =+$L72 -> 2.5 | AM72: =+$M72 -> 2.5 | AN72: =+$N72 -> R | AO72: =+$O72 -> R | AP72: =+$I72 -> 2.5 | AQ72: =+$J72 -> 2.5 | AR72: =+$K72 -> 2.5 | AS72: =+$L72 -> 2.5 | AT72: =+$M72 -> 2.5 | AU72: =+$N72 -> R | AV72: =+$O72 -> R | AW72: h contrat | AX72: =H72 -> 54.16666667 | AY72: HEURE CAT | AZ72: =+H72 -> 54.16666667 | BA72: =AZ72*E72 -> 638.625
C73: =+C72 -> CDI | D73: ASCA | E73: 11.79 | G73: H. ABS | AW73: h travaillable | AX73: =SUM(R72:AV72) -> 52.5 | AY73: H. ABS | AZ73: =SUM(R73:AV73) -> 0 | BA73: =AZ73*E73 -> 0
C74: CDI | D74: ASCA | E74: 11.79 | G74: H. SUP | AW74: h travaillées | AX74: =AX73-AZ73+AZ74 -> 52.5 | AY74: H. SUP | AZ74: =SUM(R74:AV74) -> 0 | BA74: =IF(H72<35*52/12,IF(BB74="O",AZ74*1.1*E74,AZ74*1.11*E74),AZ74*1.25*E74) -> 0 | BB74: =IF(C72="CDI",IF(AZ74<AZ72*0.1,"N","O"),"N") -> N
C75: CDI | D75: ASCA | E75: 11.79 | G75: MOTIFS | AW75: h du mois | AX75: =AX74 -> 52.5 | AY75: MOTIF/TOT MOB | BA75: =IF(AX74=0,0,BA72-BA73+BA74) -> 638.625
D76: ASPA | E76: =VLOOKUP(D76,'Taux horaire'!$A$4:$B$31,2,FALSE) -> 11.75 | G76: HEURE CAT | N76: R | O76: R | R76: =+$M76 -> 0 | S76: =+$N76 -> R | T76: =+$O76 -> R | U76: =+$I76 -> 0 | V76: =+$J76 -> 0 | W76: =+$K76 -> 0 | X76: =+$L76 -> 0 | Y76: =+$M76 -> 0 | Z76: =+$N76 -> R | AA76: =+$O76 -> R | AB76: =+$I76 -> 0 | AC76: =+$J76 -> 0 | AD76: =+$K76 -> 0 | AE76: =+$L76 -> 0 | AF76: =+$M76 -> 0 | AG76: =+$N76 -> R | AH76: =+$O76 -> R | AI76: =+$I76 -> 0 | AJ76: =+$J76 -> 0 | AK76: =+$K76 -> 0 | AL76: 3 | AM76: 3 | AN76: =+$N76 -> R | AO76: =+$O76 -> R | AP76: =+$I76 -> 0 | AQ76: =+$J76 -> 0 | AR76: =+$K76 -> 0 | AS76: 3 | AT76: 3 | AU76: =+$N76 -> R | AV76: =+$O76 -> R | AW76: h contrat | AX76: =H76 -> 0 | AY76: HEURE CAT | AZ76: =+H76 -> 0 | BA76: =AZ76*E76 -> 0
C77: =+C76 -> 0 | D77: ASPA | E77: 11.75 | G77: H. ABS | AW77: h travaillable | AX77: =SUM(R76:AV76) -> 12 | AY77: H. ABS | AZ77: =SUM(R77:AV77) -> 0 | BA77: =AZ77*E77 -> 0
C78: 0 | D78: ASPA | E78: 11.75 | G78: H. SUP | AW78: h travaillées | AX78: =AX77-AZ77+AZ78 -> 12 | AY78: H. SUP | AZ78: =SUM(R78:AV78) -> 0 | BA78: =IF(H76<35*52/12,IF(BB78="O",AZ78*1.1*E78,AZ78*1.11*E78),AZ78*1.25*E78) -> 0 | BB78: =IF(C76="CDI",IF(AZ78<AZ76*0.1,"N","O"),"N") -> N
C79: 0 | D79: ASPA | E79: 11.75 | G79: MOTIFS | AW79: h du mois | AX79: =AX78 -> 12 | AY79: MOTIF/TOT MOB | BA79: =IF(AX78=0,0,BA76-BA77+BA78) -> 0
A80: VIJAYAKUMARAN | B80: NADARAJAH | C80: CDI | D80: ASCA | E80: =VLOOKUP(D80,'Taux horaire'!$A$4:$B$31,2,FALSE) -> 11.79 | F80: MALADIE PRO | G80: HEURE CAT | H80: =(SUBTOTAL(9,I80:O80))*52/12 -> 54.16666667 | I80: 2.5 | J80: 2.5 | K80: 2.5 | L80: 2.5 | M80: 2.5 | N80: R | O80: R | R80: =+$M80 -> 2.5 | S80: =+$N80 -> R | T80: =+$O80 -> R | U80: =+$I80 -> 2.5 | V80: =+$J80 -> 2.5 | W80: =+$K80 -> 2.5 | X80: =+$L80 -> 2.5 | Y80: =+$M80 -> 2.5 | Z80: =+$N80 -> R | AA80: =+$O80 -> R | AB80: =+$I80 -> 2.5 | AC80: =+$J80 -> 2.5 | AD80: =+$K80 -> 2.5 | AE80: =+$L80 -> 2.5 | AF80: =+$M80 -> 2.5 | AG80: =+$N80 -> R | AH80: =+$O80 -> R | AI80: =+$I80 -> 2.5 | AJ80: =+$J80 -> 2.5 | AK80: =+$K80 -> 2.5 | AL80: =+$L80 -> 2.5 | AM80: =+$M80 -> 2.5 | AN80: =+$N80 -> R | AO80: =+$O80 -> R | AP80: =+$I80 -> 2.5 | AQ80: =+$J80 -> 2.5 | AR80: =+$K80 -> 2.5 | AS80: =+$L80 -> 2.5 | AT80: =+$M80 -> 2.5 | AU80: =+$N80 -> R | AV80: =+$O80 -> R | AW80: h contrat | AX80: =H80 -> 54.16666667 | AY80: HEURE CAT | AZ80: =+H80 -> 54.16666667 | BA80: =AZ80*E80 -> 638.625
C81: =+C80 -> CDI | D81: ASCA | E81: 11.79 | F81: jusqu'au 31/08 | G81: H. ABS | R81: 2.5 | U81: 2.5 | V81: 2.5 | W81: 2.5 | X81: 2.5 | Y81: 2.5 | AB81: 2.5 | AC81: 2.5 | AD81: 2.5 | AE81: 2.5 | AF81: 2.5 | AI81: 2.5 | AJ81: 2.5 | AK81: 2.5 | AL81: 2.5 | AM81: 2.5 | AP81: 2.5 | AQ81: 2.5 | AR81: 2.5 | AS81: 2.5 | AT81: 2.5 | AW81: h travaillable | AX81: =SUM(R80:AV80) -> 52.5 | AY81: H. ABS | AZ81: =SUM(R81:AV81) -> 52.5 | BA81: =AZ81*E81 -> 618.975
C82: CDI | D82: ASCA | E82: 11.79 | G82: H. SUP | AW82: h travaillées | AX82: =AX81-AZ81+AZ82 -> 0 | AY82: H. SUP | AZ82: =SUM(R82:AV82) -> 0 | BA82: =IF(H80<35*52/12,IF(BB82="O",AZ82*1.1*E82,AZ82*1.11*E82),AZ82*1.25*E82) -> 0 | BB82: =IF(C80="CDI",IF(AZ82<AZ80*0.1,"N","O"),"N") -> N
C83: CDI | D83: ASCA | E83: 11.79 | G83: MOTIFS | R83: MAL | U83: MAL | V83: MAL | W83: MAL | X83: MAL | Y83: MAL | AB83: MAL | AC83: MAL | AD83: MAL | AE83: MAL | AF83: MAL | AI83: MAL | AJ83: MAL | AK83: MAL | AL83: MAL | AM83: MAL | AP83: MAL | AQ83: MAL | AR83: MAL | AS83: MAL | AT83: MAL | AW83: h du mois | AX83: =AX82 -> 0 | AY83: MOTIF/TOT MOB | BA83: =IF(AX82=0,0,BA80-BA81+BA82) -> 0
A84: ZENATI | B84: HADJIRA | C84: CDI | D84: CE2 | E84: =VLOOKUP(D84,'Taux horaire'!$A$4:$B$31,2,FALSE) -> 14.33 | G84: HEURE CAT | H84: =(SUBTOTAL(9,I84:O84))*52/12 -> 151.6666667 | I84: 7 | J84: 7 | K84: 7 | L84: 7 | M84: 7 | N84: R | O84: R | R84: =+$M84 -> 7 | S84: =+$N84 -> R | T84: =+$O84 -> R | U84: =+$I84 -> 7 | V84: =+$J84 -> 7 | W84: =+$K84 -> 7 | X84: =+$L84 -> 7 | Y84: =+$M84 -> 7 | Z84: =+$N84 -> R | AA84: =+$O84 -> R | AB84: =+$I84 -> 7 | AC84: =+$J84 -> 7 | AD84: =+$K84 -> 7 | AE84: =+$L84 -> 7 | AF84: =+$M84 -> 7 | AG84: =+$N84 -> R | AH84: =+$O84 -> R | AI84: =+$I84 -> 7 | AJ84: =+$J84 -> 7 | AK84: =+$K84 -> 7 | AL84: =+$L84 -> 7 | AM84: =+$M84 -> 7 | AN84: =+$N84 -> R | AO84: =+$O84 -> R | AP84: =+$I84 -> 7 | AQ84: =+$J84 -> 7 | AR84: =+$K84 -> 7 | AS84: =+$L84 -> 7 | AT84: =+$M84 -> 7 | AU84: =+$N84 -> R | AV84: =+$O84 -> R | AW84: h contrat | AX84: =H84 -> 151.6666667 | AY84: HEURE CAT | AZ84: =+H84 -> 151.6666667 | BA84: =AZ84*E84 -> 2173.383333
C85: =+C84 -> CDI | D85: CE2 | E85: 14.33 | G85: H. ABS | AW85: h travaillable | AX85: =SUM(R84:AV84) -> 147 | AY85: H. ABS | AZ85: =SUM(R85:AV85) -> 0 | BA85: =AZ85*E85 -> 0
C86: CDI | D86: CE2 | E86: 14.33 | G86: H. SUP | AW86: h travaillées | AX86: =AX85-AZ85+AZ86 -> 147 | AY86: H. SUP | AZ86: =SUM(R86:AV86) -> 0 | BA86: =IF(H84<35*52/12,IF(BB86="O",AZ86*1.1*E86,AZ86*1.11*E86),AZ86*1.25*E86) -> 0 | BB86: =IF(C84="CDI",IF(AZ86<AZ84*0.1,"N","O"),"N") -> N
C87: CDI | D87: CE2 | E87: 14.33 | G87: MOTIFS | AW87: h du mois | AX87: =AX86 -> 147 | AY87: MOTIF/TOT MOB | BA87: =IF(AX86=0,0,BA84-BA85+BA86) -> 2173.383333
C88: CDD | D88: ASPA | E88: =VLOOKUP(D88,'Taux horaire'!$A$4:$B$31,2,FALSE) -> 11.75 | G88: HEURE CAT | H88: =(SUBTOTAL(9,I88:O88))*52/12 -> 0 | N88: R | O88: R | R88: =+$M88 -> 0 | S88: =+$N88 -> R | T88: =+$O88 -> R | U88: =+$I88 -> 0 | V88: =+$J88 -> 0 | W88: =+$K88 -> 0 | X88: =+$L88 -> 0 | Y88: =+$M88 -> 0 | Z88: =+$N88 -> R | AA88: =+$O88 -> R | AB88: =+$I88 -> 0 | AC88: =+$J88 -> 0 | AD88: =+$K88 -> 0 | AE88: =+$L88 -> 0 | AF88: =+$M88 -> 0 | AG88: =+$N88 -> R | AH88: =+$O88 -> R | AI88: =+$I88 -> 0 | AJ88: =+$J88 -> 0 | AK88: =+$K88 -> 0 | AL88: =+$L88 -> 0 | AM88: =+$M88 -> 0 | AN88: =+$N88 -> R | AO88: =+$O88 -> R | AP88: =+$I88 -> 0 | AQ88: =+$J88 -> 0 | AR88: =+$K88 -> 0 | AS88: =+$L88 -> 0 | AT88: =+$M88 -> 0 | AU88: =+$N88 -> R | AV88: =+$O88 -> R | AW88: h contrat | AX88: =H88 -> 0 | AY88: HEURE CAT | AZ88: =+H88 -> 0 | BA88: =AZ88*E88 -> 0
C89: =+C88 -> CDD | D89: ASPA | E89: 11.75 | G89: H. ABS | AW89: h travaillable | AX89: =SUM(R88:AV88) -> 0 | AY89: H. ABS | AZ89: =SUM(R89:AV89) -> 0 | BA89: =AZ89*E89 -> 0
C90: =+C89 -> CDD | D90: ASPA | E90: 11.75 | G90: H. SUP | AW90: h travaillées | AX90: =AX89-AZ89+AZ90 -> 0 | AY90: H. SUP | AZ90: =SUM(R90:AV90) -> 0 | BA90: =IF(H88<35*52/12,IF(BB90="O",AZ90*1.1*E90,AZ90*1.11*E90),AZ90*1.25*E90) -> 0 | BB90: =IF(C88="CDI",IF(AZ90<AZ88*0.1,"N","O"),"N") -> N
C91: =+C90 -> CDD | D91: ASPA | E91: 11.75 | G91: MOTIFS | AW91: h du mois | AX91: =AX90 -> 0 | AY91: MOTIF/TOT MOB | BA91: =IF(AX90=0,0,BA88-BA89+BA90) -> 0
C92: CDD | D92: ASPA | E92: =VLOOKUP(D92,'Taux horaire'!$A$4:$B$31,2,FALSE) -> 11.75 | G92: HEURE CAT | H92: =(SUBTOTAL(9,I92:O92))*52/12 -> 0 | N92: R | O92: R | R92: 2 | S92: =+$N92 -> R | T92: =+$O92 -> R | U92: 2 | V92: 2 | W92: 2 | X92: 2 | Y92: 2 | Z92: =+$N92 -> R | AA92: =+$O92 -> R | AB92: 2 | AC92: 2 | AD92: 2 | AE92: 2 | AF92: 2 | AG92: =+$N92 -> R | AH92: =+$O92 -> R | AI92: 2 | AJ92: 2 | AK92: 2 | AL92: 2 | AM92: 2 | AN92: =+$N92 -> R | AO92: =+$O92 -> R | AP92: 2 | AQ92: 2 | AR92: 2 | AS92: 2 | AT92: 2 | AU92: =+$N92 -> R | AV92: =+$O92 -> R | AW92: h contrat | AX92: =H92 -> 0 | AY92: HEURE CAT | AZ92: =+H92 -> 0 | BA92: =AZ92*E92 -> 0
C93: =+C92 -> CDD | D93: ASPA | E93: 10.56 | G93: H. ABS | AX93: =SUM(R92:AV92) -> 42 | AY93: H. ABS | AZ93: =SUM(R93:AV93) -> 0 | BA93: =AZ93*E93 -> 0
C94: =+C93 -> CDD | D94: ASPA | E94: =+E92 -> 11.75 | G94: H.SUP | AW94: h travaillable | AX94: =AX93-AZ93+AZ94 -> 42 | AY94: H. SUP | AZ94: =SUM(R94:AV94) -> 0 | BA94: =IF(H92<35*52/12,IF(BB94="O",AZ94*1.1*E94,AZ94*1.11*E94),AZ94*1.25*E94) -> 0 | BB94: =IF(C92="CDI",IF(AZ94<AZ92*0.1,"N","O"),"N") -> N
C95: =+C94 -> CDD | D95: ASPA | E95: 10.56 | G95: MOTIFS | AW95: h du mois | AX95: =AX94 -> 42 | AY95: MOTIF/TOT MOB | BA95: =IF(AX94=0,0,BA92-BA93+BA94) -> 0
C96: CDD | D96: ASPA | E96: =VLOOKUP(D96,'Taux horaire'!$A$4:$B$31,2,FALSE) -> 11.75 | G96: HEURE CAT | H96: =(SUBTOTAL(9,I96:O96))*52/12 -> 0 | N96: R | O96: R | R96: =+$M96 -> 0 | S96: =+$N96 -> R | T96: =+$O96 -> R | U96: =+$I96 -> 0 | V96: =+$J96 -> 0 | W96: =+$K96 -> 0 | X96: =+$L96 -> 0 | Y96: =+$M96 -> 0 | Z96: =+$N96 -> R | AA96: =+$O96 -> R | AB96: =+$I96 -> 0 | AC96: =+$J96 -> 0 | AD96: =+$K96 -> 0 | AE96: =+$L96 -> 0 | AF96: =+$M96 -> 0 | AG96: =+$N96 -> R | AH96: =+$O96 -> R | AI96: =+$I96 -> 0 | AJ96: =+$J96 -> 0 | AK96: =+$K96 -> 0 | AL96: =+$L96 -> 0 | AM96: =+$M96 -> 0 | AN96: =+$N96 -> R | AO96: =+$O96 -> R | AP96: =+$I96 -> 0 | AQ96: =+$J96 -> 0 | AR96: =+$K96 -> 0 | AS96: =+$L96 -> 0 | AT96: =+$M96 -> 0 | AU96: =+$N96 -> R | AV96: =+$O96 -> R | AW96: h contrat | AX96: =H96 -> 0 | AY96: HEURE CAT | AZ96: =+H96 -> 0 | BA96: =AZ96*E96 -> 0
C97: =+C96 -> CDD | D97: ASPA | E97: 10.56 | G97: H. ABS | AX97: =SUM(R96:AV96) -> 0 | AY97: H. ABS | AZ97: =SUM(R97:AV97) -> 0 | BA97: =AZ97*E97 -> 0
C98: =+C97 -> CDD | D98: ASPA | E98: =+E96 -> 11.75 | G98: H.SUP | AW98: h travaillable | AX98: =AX97-AZ97+AZ98 -> 0 | AY98: H. SUP | AZ98: =SUM(R98:AV98) -> 0 | BA98: =IF(H96<35*52/12,IF(BB98="O",AZ98*1.1*E98,AZ98*1.11*E98),AZ98*1.25*E98) -> 0 | BB98: =IF(C96="CDI",IF(AZ98<AZ96*0.1,"N","O"),"N") -> N
C99: =+C98 -> CDD | D99: ASPA | E99: 10.56 | G99: MOTIFS | AW99: h du mois | AX99: =AX98 -> 0 | AY99: MOTIF/TOT MOB | BA99: =IF(AX98=0,0,BA96-BA97+BA98) -> 0
C100: CDD | D100: ASPA | E100: =VLOOKUP(D100,'Taux horaire'!$A$4:$B$31,2,FALSE) -> 11.75 | G100: HEURE CAT | H100: =(SUBTOTAL(9,I100:O100))*52/12 -> 0 | N100: R | O100: R | R100: 2 | S100: =+$N100 -> R | T100: =+$O100 -> R | U100: 2 | V100: 2 | W100: 2 | X100: 2 | Y100: 2 | Z100: =+$N100 -> R | AA100: =+$O100 -> R | AB100: 2 | AC100: 2 | AD100: 2 | AE100: 2 | AF100: 2 | AG100: =+$N100 -> R | AH100: =+$O100 -> R | AI100: 2 | AJ100: 2 | AK100: 2 | AL100: 2 | AM100: 2 | AN100: =+$N100 -> R | AO100: =+$O100 -> R | AP100: 2 | AQ100: 2 | AR100: 2 | AS100: 2 | AT100: 2 | AU100: =+$N100 -> R | AV100: =+$O100 -> R | AW100: h contrat | AX100: =H100 -> 0 | AY100: HEURE CAT | AZ100: =+H100 -> 0 | BA100: =AZ100*E100 -> 0
C101: =+C100 -> CDD | D101: ASPA | E101: 10.56 | G101: H. ABS | AX101: =SUM(R100:AV100) -> 42 | AY101: H. ABS | AZ101: =SUM(R101:AV101) -> 0 | BA101: =AZ101*E101 -> 0
C102: =+C101 -> CDD | D102: ASPA | E102: =+E100 -> 11.75 | G102: H.SUP | AW102: h travaillable | AX102: =AX101-AZ101+AZ102 -> 42 | AY102: H. SUP | AZ102: =SUM(R102:AV102) -> 0 | BA102: =IF(H100<35*52/12,IF(BB102="O",AZ102*1.1*E102,AZ102*1.11*E102),AZ102*1.25*E102) -> 0 | BB102: =IF(C100="CDI",IF(AZ102<AZ100*0.1,"N","O"),"N") -> N
C103: =+C102 -> CDD | D103: ASPA | E103: 10.56 | G103: MOTIFS | AW103: h du mois | AX103: =AX102 -> 42 | AY103: MOTIF/TOT MOB | BA103: =IF(AX102=0,0,BA100-BA101+BA102) -> 0
C104: CDD | D104: ASPA | E104: =VLOOKUP(D104,'Taux horaire'!$A$4:$B$31,2,FALSE) -> 11.75 | G104: HEURE CAT | H104: =(SUBTOTAL(9,I104:O104))*52/12 -> 0 | N104: R | O104: R | R104: =+$M104 -> 0 | S104: =+$N104 -> R | T104: =+$O104 -> R | U104: =+$I104 -> 0 | V104: =+$J104 -> 0 | W104: =+$K104 -> 0 | X104: =+$L104 -> 0 | Y104: =+$M104 -> 0 | Z104: =+$N104 -> R | AA104: =+$O104 -> R | AB104: =+$I104 -> 0 | AC104: =+$J104 -> 0 | AD104: =+$K104 -> 0 | AE104: =+$L104 -> 0 | AF104: =+$M104 -> 0 | AG104: =+$N104 -> R | AH104: =+$O104 -> R | AI104: =+$I104 -> 0 | AJ104: =+$J104 -> 0 | AK104: =+$K104 -> 0 | AL104: =+$L104 -> 0 | AM104: =+$M104 -> 0 | AN104: =+$N104 -> R | AO104: =+$O104 -> R | AP104: =+$I104 -> 0 | AQ104: =+$J104 -> 0 | AR104: =+$K104 -> 0 | AS104: =+$L104 -> 0 | AT104: =+$M104 -> 0 | AU104: =+$N104 -> R | AV104: =+$O104 -> R | AW104: h contrat | AX104: =H104 -> 0 | AY104: HEURE CAT | AZ104: =+H104 -> 0 | BA104: =AZ104*E104 -> 0
C105: =+C104 -> CDD | D105: ASPA | E105: 10.56 | G105: H. ABS | AX105: =SUM(R104:AV104) -> 0 | AY105: H. ABS | AZ105: =SUM(R105:AV105) -> 0 | BA105: =AZ105*E105 -> 0
C106: =+C105 -> CDD | D106: ASPA | E106: =+E104 -> 11.75 | G106: H.SUP | AW106: h travaillable | AX106: =AX105-AZ105+AZ106 -> 0 | AY106: H. SUP | AZ106: =SUM(R106:AV106) -> 0 | BA106: =IF(H104<35*52/12,IF(BB106="O",AZ106*1.1*E106,AZ106*1.11*E106),AZ106*1.25*E106) -> 0 | BB106: =IF(C104="CDI",IF(AZ106<AZ104*0.1,"N","O"),"N") -> N
C107: =+C106 -> CDD | D107: ASPA | E107: 10.56 | G107: MOTIFS | AW107: h du mois | AX107: =AX106 -> 0 | AY107: MOTIF/TOT MOB | BA107: =IF(AX106=0,0,BA104-BA105+BA106) -> 0
C108: CDD | D108: ASPA | E108: =VLOOKUP(D108,'Taux horaire'!$A$4:$B$31,2,FALSE) -> 11.75 | G108: HEURE CAT | H108: =(SUBTOTAL(9,I108:O108))*52/12 -> 0 | N108: R | O108: R | R108: =+$M108 -> 0 | S108: =+$N108 -> R | T108: =+$O108 -> R | U108: =+$I108 -> 0 | V108: =+$J108 -> 0 | W108: =+$K108 -> 0 | X108: =+$L108 -> 0 | Y108: =+$M108 -> 0 | Z108: =+$N108 -> R | AA108: =+$O108 -> R | AB108: =+$I108 -> 0 | AC108: =+$J108 -> 0 | AD108: =+$K108 -> 0 | AE108: =+$L108 -> 0 | AF108: =+$M108 -> 0 | AG108: =+$N108 -> R | AH108: =+$O108 -> R | AI108: =+$I108 -> 0 | AJ108: =+$J108 -> 0 | AK108: =+$K108 -> 0 | AL108: =+$L108 -> 0 | AM108: =+$M108 -> 0 | AN108: =+$N108 -> R | AO108: =+$O108 -> R | AP108: =+$I108 -> 0 | AQ108: =+$J108 -> 0 | AR108: =+$K108 -> 0 | AS108: =+$L108 -> 0 | AT108: =+$M108 -> 0 | AU108: =+$N108 -> R | AV108: =+$O108 -> R | AW108: h contrat | AX108: =H108 -> 0 | AY108: HEURE CAT | AZ108: =+H108 -> 0 | BA108: =AZ108*E108 -> 0
C109: =+C108 -> CDD | D109: ASPA | E109: 11.75 | G109: H. ABS | AK109: 7 | AL109: 7 | AM109: 7 | AR109: 7 | AS109: 7 | AT109: 7 | AW109: h travaillable | AX109: =SUM(R108:AV108) -> 0 | AY109: H. ABS | AZ109: =SUM(R109:AV109) -> 42 | BA109: =AZ109*E109 -> 493.5
C110: CDD | D110: ASPA | E110: 11.75 | G110: H. SUP | AW110: h travaillées | AX110: =AX109-AZ109+AZ110 -> -42 | AY110: H. SUP | AZ110: =SUM(R110:AV110) -> 0 | BA110: =IF(H108<35*52/12,IF(BB110="O",AZ110*1.1*E110,AZ110*1.11*E110),AZ110*1.25*E110) -> 0 | BB110: =IF(C108="CDI",IF(AZ110<AZ108*0.1,"N","O"),"N") -> N
C111: CDD | D111: ASPA | E111: 11.75 | G111: MOTIFS | AK111: AANP | AL111: AANP | AM111: AANP | AR111: AANP | AS111: AANP | AT111: AANP | AW111: h du mois | AX111: =AX110 -> -42 | AY111: MOTIF/TOT MOB | BA111: =IF(AX110=0,0,BA108-BA109+BA110) -> -493.5
D112: ASPA | E112: =VLOOKUP(D112,'Taux horaire'!$A$4:$B$31,2,FALSE) -> 11.75 | G112: HEURE CAT | H112: =(SUBTOTAL(9,I112:O112))*52/12 -> 0 | N112: R | O112: R | R112: =+$M112 -> 0 | S112: =+$N112 -> R | T112: =+$O112 -> R | U112: =+$I112 -> 0 | V112: =+$J112 -> 0 | W112: =+$K112 -> 0 | X112: =+$L112 -> 0 | Y112: =+$M112 -> 0 | Z112: =+$N112 -> R | AA112: =+$O112 -> R | AB112: =+$I112 -> 0 | AC112: =+$J112 -> 0 | AD112: =+$K112 -> 0 | AE112: =+$L112 -> 0 | AF112: =+$M112 -> 0 | AG112: =+$N112 -> R | AH112: =+$O112 -> R | AI112: =+$I112 -> 0 | AJ112: =+$J112 -> 0 | AK112: =+$K112 -> 0 | AL112: 2 | AM112: 2 | AN112: =+$N112 -> R | AO112: =+$O112 -> R | AP112: =+$I112 -> 0 | AQ112: =+$J112 -> 0 | AR112: =+$K112 -> 0 | AS112: 2 | AT112: 2 | AU112: =+$N112 -> R | AV112: =+$O112 -> R | AW112: h contrat | AX112: =H112 -> 0 | AY112: HEURE CAT | AZ112: =+H112 -> 0 | BA112: =AZ112*E112 -> 0
C113: =+C112 -> 0 | D113: ASPA | E113: 11.75 | G113: H. ABS | AX113: =SUM(R112:AV112) -> 8 | AY113: H. ABS | AZ113: =SUM(R113:AV113) -> 0 | BA113: =AZ113*E113 -> 0
C114: =+C113 -> 0 | D114: ASPA | E114: 11.75 | G114: H.SUP | AW114: h travaillable | AX114: =AX113-AZ113+AZ114 -> 8 | AY114: H. SUP | AZ114: =SUM(R114:AV114) -> 0 | BA114: =IF(H112<35*52/12,IF(BB114="O",AZ114*1.1*E114,AZ114*1.11*E114),AZ114*1.25*E114) -> 0 | BB114: =IF(C112="CDI",IF(AZ114<AZ112*0.1,"N","O"),"N") -> N
C115: =+C114 -> 0 | D115: ASPA | E115: 11.75 | G115: MOTIFS | AW115: h du mois | AX115: =AX114 -> 8 | AY115: MOTIF/TOT MOB | BA115: =IF(AX114=0,0,BA112-BA113+BA114) -> 0

Sheet 723806 urgence med
H1: 2023-09-01 | AV1: ²
A2: 723806 | B2: URGENCE MED | I2: 2019-08-05 | J2: 2019-08-06 | K2: 2019-08-07 | L2: 2019-08-01 | M2: 2019-08-02 | N2: 2019-08-03 | O2: 2019-08-04 | R2: =H1 -> 2023-09-01 | S2: =R2+1 -> 2023-09-02 | T2: 2023-09-03 | U2: 2023-09-04 | V2: 2023-09-05 | W2: 2023-09-06 | X2: 2023-09-07 | Y2: 2023-09-08 | Z2: 2023-09-09 | AA2: 2023-09-10 | AB2: 2023-09-11 | AC2: 2023-09-12 | AD2: 2023-09-13 | AE2: 2023-09-14 | AF2: 2023-09-15 | AG2: 2023-09-16 | AH2: 2023-09-17 | AI2: 2023-09-18 | AJ2: 2023-09-19 | AK2: 2023-09-20 | AL2: 2023-09-21 | AM2: 2023-09-22 | AN2: 2023-09-23 | AO2: 2023-09-24 | AP2: 2023-09-25 | AQ2: 2023-09-26 | AR2: 2023-09-27 | AS2: 2023-09-28 | AT2: 2023-09-29 | AU2: 2023-09-30 | AV2: 2023-10-01 | AW2: =#REF!+1 ->  | AX2: =AW2+1 ->  | AZ2: 0 | BA2: =SUM(BA15,BA11,BA7,BC4:BC15) -> 534.625
A3: Nom | B3: Prénom | C3: CDD - CDI | D3: QUALIFICATION | E3: Taux Horaire | F3: Commentaire | G3: Libellé | H3: =H1 -> 2023-09-01 | I3: 1 | J3: 2 | K3: 3 | L3: 4 | M3: 5 | N3: 6 | O3: 7 | R3: =+R2 -> 2023-09-01 | S3: 2023-09-02 | T3: 2023-09-03 | U3: 2023-09-04 | V3: 2023-09-05 | W3: 2023-09-06 | X3: 2023-09-07 | Y3: 2023-09-08 | Z3: 2023-09-09 | AA3: 2023-09-10 | AB3: 2023-09-11 | AC3: 2023-09-12 | AD3: 2023-09-13 | AE3: 2023-09-14 | AF3: 2023-09-15 | AG3: 2023-09-16 | AH3: 2023-09-17 | AI3: 2023-09-18 | AJ3: 2023-09-19 | AK3: 2023-09-20 | AL3: 2023-09-21 | AM3: 2023-09-22 | AN3: 2023-09-23 | AO3: 2023-09-24 | AP3: 2023-09-25 | AQ3: 2023-09-26 | AR3: 2023-09-27 | AS3: 2023-09-28 | AT3: 2023-09-29 | AU3: 2023-09-30 | AV3: 2023-10-01 | AX3: H travaillées mois | AY3: Libellé | AZ3: Total heures mois | BA3: Coût total mois | BB3: AVPP | BC3: Primes | BD3: justification H Plus et Primes
A4: BAMBOU | B4: KARIMA | C4: CDI | D4: ASPA | E4: =VLOOKUP(D4,'Taux horaire'!$A$4:$B$31,2,FALSE) -> 11.75 | F4: avpp essilor | G4: HEURE CAT | H4: =(SUBTOTAL(9,I4:O4))*52/12 -> 39 | I4: 1.5 | J4: 1.5 | K4: 1.5 | L4: 1.5 | M4: 1.5 | N4: 1.5 | O4: R | R4: =$M$4 -> 1.5 | S4: =$N$4 -> 1.5 | T4: =$O$4 -> R | U4: =$I$4 -> 1.5 | V4: =$J$4 -> 1.5 | W4: =$K$4 -> 1.5 | X4: =$L$4 -> 1.5 | Y4: =$M$4 -> 1.5 | Z4: =$N$4 -> 1.5 | AA4: =$O$4 -> R | AB4: =$I$4 -> 1.5 | AC4: =$J$4 -> 1.5 | AD4: =$K$4 -> 1.5 | AE4: =$L$4 -> 1.5 | AF4: =$M$4 -> 1.5 | AG4: =$N$4 -> 1.5 | AH4: =$O$4 -> R | AI4: =$I$4 -> 1.5 | AJ4: =$J$4 -> 1.5 | AK4: =$K$4 -> 1.5 | AL4: =$L$4 -> 1.5 | AM4: =$M$4 -> 1.5 | AN4: =$N$4 -> 1.5 | AO4: =$O$4 -> R | AP4: =$I$4 -> 1.5 | AQ4: =$J$4 -> 1.5 | AR4: =$K$4 -> 1.5 | AS4: =$L$4 -> 1.5 | AT4: =$M$4 -> 1.5 | AU4: =$N$4 -> 1.5 | AV4: =$O$4 -> R | AW4: h contrat | AX4: =H4 -> 39 | AY4: HEURE CAT | AZ4: =+H4 -> 39 | BA4: =AZ4*E4 -> 458.25
C5: =+C4 -> CDI | D5: ASPA | E5: 11.75 | G5: H. ABS | AW5: h travaillable | AX5: =SUM(R4:AV4) -> 39 | AY5: H. ABS | AZ5: =SUM(R5:AV5) -> 0 | BA5: =AZ5*E5 -> 0
C6: CDI | D6: ASPA | E6: 11.75 | G6: H. SUP | AW6: h travaillées | AX6: =AX5-AZ5+AZ6 -> 39 | AY6: H. SUP | AZ6: =SUM(R6:AV6) -> 0 | BA6: =IF(H4<35*52/12,IF(BB6="O",AZ6*1.1*E6,AZ6*1.11*E6),AZ6*1.25*E6) -> 0 | BB6: =IF(C4="CDI",IF(AZ6<AZ4*0.1,"N","O"),"N") -> N
C7: CDI | D7: ASPA | E7: 11.75 | G7: MOTIFS | AW7: h du mois | AX7: =AX6 -> 39 | AY7: MOTIF/TOT MOB | BA7: =IF(AX6=0,0,BA4-BA5+BA6) -> 458.25
A8: CHIJI | B8: FATIHA | C8: CDI | D8: ASPA | E8: =VLOOKUP(D8,'Taux horaire'!$A$4:$B$31,2,FALSE) -> 11.75 | F8: avpp essilor | G8: HEURE CAT | H8: =(SUBTOTAL(9,I8:O8))*52/12 -> 6.5 | I8: R | J8: R | K8: R | L8: R | M8: R | N8: R | O8: 1.5 | R8: =+$M8 -> R | S8: =+$N8 -> R | T8: =+$O8 -> 1.5 | U8: =+$I8 -> R | V8: =+$J8 -> R | W8: =+$K8 -> R | X8: =+$L8 -> R | Y8: =+$M8 -> R | Z8: =+$N8 -> R | AA8: =+$O8 -> 1.5 | AB8: =+$I8 -> R | AC8: =+$J8 -> R | AD8: =+$K8 -> R | AE8: =+$L8 -> R | AF8: =+$M8 -> R | AG8: =+$N8 -> R | AH8: =+$O8 -> 1.5 | AI8: =+$I8 -> R | AJ8: =+$J8 -> R | AK8: =+$K8 -> R | AL8: =+$L8 -> R | AM8: =+$M8 -> R | AN8: =+$N8 -> R | AO8: =+$O8 -> 1.5 | AP8: =+$I8 -> R | AQ8: =+$J8 -> R | AR8: =+$K8 -> R | AS8: =+$L8 -> R | AT8: =+$M8 -> R | AU8: =+$N8 -> R | AV8: =+$O8 -> 1.5 | AW8: h contrat | AX8: =H8 -> 6.5 | AY8: HEURE CAT | AZ8: =+H8 -> 6.5 | BA8: =AZ8*E8 -> 76.375
C9: =+C8 -> CDI | D9: ASPA | E9: 11.75 | G9: H. ABS | AW9: h travaillable | AX9: =SUM(R8:AV8) -> 7.5 | AY9: H. ABS | AZ9: =SUM(R9:AV9) -> 0 | BA9: =AZ9*E9 -> 0
C10: CDI | D10: ASPA | E10: 11.75 | G10: H. SUP | AW10: h travaillées | AX10: =AX9-AZ9+AZ10 -> 7.5 | AY10: H. SUP | AZ10: =SUM(R10:AV10) -> 0 | BA10: =IF(H8<35*52/12,IF(BB10="O",AZ10*1.1*E10,AZ10*1.11*E10),AZ10*1.25*E10) -> 0 | BB10: =IF(C8="CDI",IF(AZ10<AZ8*0.1,"N","O"),"N") -> N
C11: CDI | D11: ASPA | E11: 11.75 | G11: MOTIFS | AW11: h du mois | AX11: =AX10 -> 7.5 | AY11: MOTIF/TOT MOB | BA11: =IF(AX10=0,0,BA8-BA9+BA10) -> 76.375
C12: CDI | D12: ASPA | E12: =VLOOKUP(D12,'Taux horaire'!$A$4:$B$31,2,FALSE) -> 11.75 | G12: HEURE CAT | H12: =(SUBTOTAL(9,I12:O12))*52/12 -> 0 | N12: R | O12: R | R12: =+$M12 -> 0 | S12: =+$N12 -> R | T12: =+$O12 -> R | U12: =+$I12 -> 0 | V12: =+$J12 -> 0 | W12: =+$K12 -> 0 | X12: =+$L12 -> 0 | Y12: =+$M12 -> 0 | Z12: =+$N12 -> R | AA12: =+$O12 -> R | AB12: =+$I12 -> 0 | AC12: =+$J12 -> 0 | AD12: =+$K12 -> 0 | AE12: =+$L12 -> 0 | AF12: =+$M12 -> 0 | AG12: =+$N12 -> R | AH12: =+$O12 -> R | AI12: =+$I12 -> 0 | AJ12: =+$J12 -> 0 | AK12: =+$K12 -> 0 | AL12: =+$L12 -> 0 | AM12: =+$M12 -> 0 | AN12: =+$N12 -> R | AO12: =+$O12 -> R | AP12: =+$I12 -> 0 | AQ12: =+$J12 -> 0 | AR12: =+$K12 -> 0 | AS12: =+$L12 -> 0 | AT12: =+$M12 -> 0 | AU12: =+$N12 -> R | AV12: =+$O12 -> R | AW12: h contrat | AX12: =H12 -> 0 | AY12: HEURE CAT | AZ12: =+H12 -> 0 | BA12: =AZ12*E12 -> 0
C13: =+C12 -> CDI | D13: ASPA | E13: 11.75 | G13: H. ABS | AW13: h travaillable | AX13: =SUM(R12:AV12) -> 0 | AY13: H. ABS | AZ13: =SUM(R13:AV13) -> 0 | BA13: =AZ13*E13 -> 0
C14: CDI | D14: ASPA | E14: 11.75 | G14: H. SUP | AW14: h travaillées | AX14: =AX13-AZ13+AZ14 -> 0 | AY14: H. SUP | AZ14: =SUM(R14:AV14) -> 0 | BA14: =IF(H12<35*52/12,IF(BB14="O",AZ14*1.1*E14,AZ14*1.11*E14),AZ14*1.25*E14) -> 0 | BB14: =IF(C12="CDI",IF(AZ14<AZ12*0.1,"N","O"),"N") -> O
C15: CDI | D15: ASPA | E15: 11.75 | G15: MOTIFS | AW15: h du mois | AX15: =AX14 -> 0 | AY15: MOTIF/TOT MOB | BA15: =IF(AX14=0,0,BA12-BA13+BA14) -> 0

Sheet 723314 médiathèque
H1: 2023-09-01 | AV1: ²
A2: 723314 | B2: MEDIATHEQUE CHARENTON | I2: 2019-08-05 | J2: 2019-08-06 | K2: 2019-08-07 | L2: 2019-08-01 | M2: 2019-08-02 | N2: 2019-08-03 | O2: 2019-08-04 | R2: =H1 -> 2023-09-01 | S2: =R2+1 -> 2023-09-02 | T2: 2023-09-03 | U2: 2023-09-04 | V2: 2023-09-05 | W2: 2023-09-06 | X2: 2023-09-07 | Y2: 2023-09-08 | Z2: 2023-09-09 | AA2: 2023-09-10 | AB2: 2023-09-11 | AC2: 2023-09-12 | AD2: 2023-09-13 | AE2: 2023-09-14 | AF2: 2023-09-15 | AG2: 2023-09-16 | AH2: 2023-09-17 | AI2: 2023-09-18 | AJ2: 2023-09-19 | AK2: 2023-09-20 | AL2: 2023-09-21 | AM2: 2023-09-22 | AN2: 2023-09-23 | AO2: 2023-09-24 | AP2: 2023-09-25 | AQ2: 2023-09-26 | AR2: 2023-09-27 | AS2: 2023-09-28 | AT2: 2023-09-29 | AU2: 2023-09-30 | AV2: 2023-10-01 | AW2: =#REF!+1 ->  | AX2: =AW2+1 ->  | BA2: =SUM(BA27,BA23,BA15,BA11,BA7,BC4:BC27) -> 2303.6
A3: Nom | B3: Prénom | C3: CDD - CDI | D3: QUALIFICATION | E3: Taux Horaire | F3: Commentaire | G3: Libellé | H3: =H1 -> 2023-09-01 | I3: 1 | J3: 2 | K3: 3 | L3: 4 | M3: 5 | N3: 6 | O3: 7 | R3: =+R2 -> 2023-09-01 | S3: 2023-09-02 | T3: 2023-09-03 | U3: 2023-09-04 | V3: 2023-09-05 | W3: 2023-09-06 | X3: 2023-09-07 | Y3: 2023-09-08 | Z3: 2023-09-09 | AA3: 2023-09-10 | AB3: 2023-09-11 | AC3: 2023-09-12 | AD3: 2023-09-13 | AE3: 2023-09-14 | AF3: 2023-09-15 | AG3: 2023-09-16 | AH3: 2023-09-17 | AI3: 2023-09-18 | AJ3: 2023-09-19 | AK3: 2023-09-20 | AL3: 2023-09-21 | AM3: 2023-09-22 | AN3: 2023-09-23 | AO3: 2023-09-24 | AP3: 2023-09-25 | AQ3: 2023-09-26 | AR3: 2023-09-27 | AS3: 2023-09-28 | AT3: 2023-09-29 | AU3: 2023-09-30 | AV3: 2023-10-01 | AX3: H travaillées mois | AY3: Libellé | AZ3: Total heures mois | BA3: Coût total mois | BB3: AVPP | BC3: Primes | BD3: justification H Plus et Primes
A4: MARTINS PIMENTA | B4: MAGDA VALERIA | C4: CDI | D4: ASCA | E4: =VLOOKUP(D4,'Taux horaire'!$A$4:$B$31,2,FALSE) -> 11.79 | G4: HEURE CAT | H4: =(SUBTOTAL(9,I4:O4))*52/12 -> 65 | I4: 3 | J4: 3 | K4: 3 | L4: 3 | M4: 3 | N4: R | O4: R | R4: =+$M4 -> 3 | S4: =+$N4 -> R | T4: =+$O4 -> R | U4: =+$I4 -> 3 | V4: =+$J4 -> 3 | W4: =+$K4 -> 3 | X4: =+$L4 -> 3 | Y4: =+$M4 -> 3 | Z4: =+$N4 -> R | AA4: =+$O4 -> R | AB4: =+$I4 -> 3 | AC4: =+$J4 -> 3 | AD4: =+$K4 -> 3 | AE4: =+$L4 -> 3 | AF4: =+$M4 -> 3 | AG4: =+$N4 -> R | AH4: =+$O4 -> R | AI4: =+$I4 -> 3 | AJ4: =+$J4 -> 3 | AK4: =+$K4 -> 3 | AL4: =+$L4 -> 3 | AM4: =+$M4 -> 3 | AN4: =+$N4 -> R | AO4: =+$O4 -> R | AP4: =+$I4 -> 3 | AQ4: =+$J4 -> 3 | AR4: =+$K4 -> 3 | AS4: =+$L4 -> 3 | AT4: =+$M4 -> 3 | AU4: =+$N4 -> R | AV4: =+$O4 -> R | AW4: h contrat | AX4: =H4 -> 65 | AY4: HEURE CAT | AZ4: =+H4 -> 65 | BA4: =AZ4*E4 -> 766.35
C5: =+C4 -> CDI | D5: ASCA | E5: 11.79 | G5: H. ABS | AW5: h travaillable | AX5: =SUM(R4:AV4) -> 63 | AY5: H. ABS | AZ5: =SUM(R5:AV5) -> 0 | BA5: =AZ5*E5 -> 0
C6: CDI | D6: ASCA | E6: 11.79 | G6: H. SUP | AW6: h travaillées | AX6: =AX5-AZ5+AZ6 -> 63 | AY6: H. SUP | AZ6: =SUM(R6:AV6) -> 0 | BA6: =IF(H4<35*52/12,IF(BB6="O",AZ6*1.1*E6,AZ6*1.11*E6),AZ6*1.25*E6) -> 0 | BB6: =IF(C4="CDI",IF(AZ6<AZ4*0.1,"N","O"),"N") -> N
C7: CDI | D7: ASCA | E7: 11.79 | G7: MOTIFS | AW7: h du mois | AX7: =AX6 -> 63 | AY7: MOTIF/TOT MOB | BA7: =IF(AX6=0,0,BA4-BA5+BA6) -> 766.35
A8: NIAKATE | B8: SADIO | C8: CDI | D8: ASCA | E8: =VLOOKUP(D8,'Taux horaire'!$A$4:$B$31,2,FALSE) -> 11.79 | G8: HEURE CAT | H8: =(SUBTOTAL(9,I8:O8))*52/12 -> 65 | I8: 3 | J8: 3 | K8: 3 | L8: 3 | M8: 3 | N8: R | O8: R | R8: =+$M8 -> 3 | S8: =+$N8 -> R | T8: =+$O8 -> R | U8: =+$I8 -> 3 | V8: =+$J8 -> 3 | W8: =+$K8 -> 3 | X8: =+$L8 -> 3 | Y8: =+$M8 -> 3 | Z8: =+$N8 -> R | AA8: =+$O8 -> R | AB8: =+$I8 -> 3 | AC8: =+$J8 -> 3 | AD8: =+$K8 -> 3 | AE8: =+$L8 -> 3 | AF8: =+$M8 -> 3 | AG8: =+$N8 -> R | AH8: =+$O8 -> R | AI8: =+$I8 -> 3 | AJ8: =+$J8 -> 3 | AK8: =+$K8 -> 3 | AL8: =+$L8 -> 3 | AM8: =+$M8 -> 3 | AN8: =+$N8 -> R | AO8: =+$O8 -> R | AP8: =+$I8 -> 3 | AQ8: =+$J8 -> 3 | AR8: =+$K8 -> 3 | AS8: =+$L8 -> 3 | AT8: =+$M8 -> 3 | AU8: =+$N8 -> R | AV8: =+$O8 -> R | AW8: h contrat | AX8: =H8 -> 65 | AY8: HEURE CAT | AZ8: =+H8 -> 65 | BA8: =AZ8*E8 -> 766.35
C9: =+C8 -> CDI | D9: ASCA | E9: 11.79 | G9: H. ABS | AW9: h travaillable | AX9: =SUM(R8:AV8) -> 63 | AY9: H. ABS | AZ9: =SUM(R9:AV9) -> 0 | BA9: =AZ9*E9 -> 0
C10: CDI | D10: ASCA | E10: 11.79 | G10: H. SUP | AW10: h travaillées | AX10: =AX9-AZ9+AZ10 -> 63 | AY10: H. SUP | AZ10: =SUM(R10:AV10) -> 0 | BA10: =IF(H8<35*52/12,IF(BB10="O",AZ10*1.1*E10,AZ10*1.11*E10),AZ10*1.25*E10) -> 0 | BB10: =IF(C8="CDI",IF(AZ10<AZ8*0.1,"N","O"),"N") -> N
C11: CDI | D11: ASCA | E11: 11.79 | G11: MOTIFS | AW11: h du mois | AX11: =AX10 -> 63 | AY11: MOTIF/TOT MOB | BA11: =IF(AX10=0,0,BA8-BA9+BA10) -> 766.35
A12: OSIAS PHILIPPE | B12: ELISSAINE | C12: CDI | D12: ASCSA | E12: =VLOOKUP(D12,'Taux horaire'!$A$4:$B$31,2,FALSE) -> 11.86 | G12: HEURE CAT | H12: =(SUBTOTAL(9,I12:O12))*52/12 -> 65 | I12: 3 | J12: 3 | K12: 3 | L12: 3 | M12: 3 | N12: R | O12: R | R12: =+$M12 -> 3 | S12: =+$N12 -> R | T12: =+$O12 -> R | U12: =+$I12 -> 3 | V12: =+$J12 -> 3 | W12: =+$K12 -> 3 | X12: =+$L12 -> 3 | Y12: =+$M12 -> 3 | Z12: =+$N12 -> R | AA12: =+$O12 -> R | AB12: =+$I12 -> 3 | AC12: =+$J12 -> 3 | AD12: =+$K12 -> 3 | AE12: =+$L12 -> 3 | AF12: =+$M12 -> 3 | AG12: =+$N12 -> R | AH12: =+$O12 -> R | AI12: =+$I12 -> 3 | AJ12: =+$J12 -> 3 | AK12: =+$K12 -> 3 | AL12: =+$L12 -> 3 | AM12: =+$M12 -> 3 | AN12: =+$N12 -> R | AO12: =+$O12 -> R | AP12: =+$I12 -> 3 | AQ12: =+$J12 -> 3 | AR12: =+$K12 -> 3 | AS12: =+$L12 -> 3 | AT12: =+$M12 -> 3 | AU12: =+$N12 -> R | AV12: =+$O12 -> R | AW12: h contrat | AX12: =H12 -> 65 | AY12: HEURE CAT | AZ12: =+H12 -> 65 | BA12: =AZ12*E12 -> 770.9
C13: =+C12 -> CDI | D13: ASCSA | E13: 11.86 | G13: H. ABS | AW13: h travaillable | AX13: =SUM(R12:AV12) -> 63 | AY13: H. ABS | AZ13: =SUM(R13:AV13) -> 0 | BA13: =AZ13*E13 -> 0
C14: CDI | D14: ASCSA | E14: 11.86 | G14: H. SUP | AW14: h travaillées | AX14: =AX13-AZ13+AZ14 -> 63 | AY14: H. SUP | AZ14: =SUM(R14:AV14) -> 0 | BA14: =IF(H12<35*52/12,IF(BB14="O",AZ14*1.1*E14,AZ14*1.11*E14),AZ14*1.25*E14) -> 0 | BB14: =IF(C12="CDI",IF(AZ14<AZ12*0.1,"N","O"),"N") -> N
C15: CDI | D15: ASCSA | E15: 11.86 | G15: MOTIFS | AW15: h du mois | AX15: =AX14 -> 63 | AY15: MOTIF/TOT MOB | BA15: =IF(AX14=0,0,BA12-BA13+BA14) -> 770.9
A16: ZRIF | B16: ILHAM | C16: CDI | D16: ASCSA | E16: =VLOOKUP(D16,'Taux horaire'!$A$4:$B$31,2,FALSE) -> 11.86 | G16: HEURE CAT | H16: =(SUBTOTAL(9,I16:O16))*52/12 -> 65 | I16: 3 | J16: 3 | K16: 3 | L16: 3 | M16: 3 | N16: R | O16: R | R16: =+$M16 -> 3 | S16: =+$N16 -> R | T16: =+$O16 -> R | U16: =+$I16 -> 3 | V16: =+$J16 -> 3 | W16: =+$K16 -> 3 | X16: =+$L16 -> 3 | Y16: =+$M16 -> 3 | Z16: =+$N16 -> R | AA16: =+$O16 -> R | AB16: =+$I16 -> 3 | AC16: =+$J16 -> 3 | AD16: =+$K16 -> 3 | AE16: =+$L16 -> 3 | AF16: =+$M16 -> 3 | AG16: =+$N16 -> R | AH16: =+$O16 -> R | AI16: =+$I16 -> 3 | AJ16: =+$J16 -> 3 | AK16: =+$K16 -> 3 | AL16: =+$L16 -> 3 | AM16: =+$M16 -> 3 | AN16: =+$N16 -> R | AO16: =+$O16 -> R | AP16: =+$I16 -> 3 | AQ16: =+$J16 -> 3 | AR16: =+$K16 -> 3 | AS16: =+$L16 -> 3 | AT16: =+$M16 -> 3 | AU16: =+$N16 -> R | AV16: =+$O16 -> R | AW16: h contrat | AX16: =H16 -> 65 | AY16: HEURE CAT | AZ16: =+H16 -> 65 | BA16: =AZ16*E16 -> 770.9
C17: =+C16 -> CDI | D17: ASCSA | E17: 11.86 | G17: H. ABS | AW17: h travaillable | AX17: =SUM(R16:AV16) -> 63 | AY17: H. ABS | AZ17: =SUM(R17:AV17) -> 0 | BA17: =AZ17*E17 -> 0
C18: =+C17 -> CDI | D18: ASCSA | E18: 11.86 | G18: H. SUP | AW18: h travaillées | AX18: =AX17-AZ17+AZ18 -> 63 | AY18: H. SUP | AZ18: =SUM(R18:AV18) -> 0 | BA18: =IF(H16<35*52/12,IF(BB18="O",AZ18*1.1*E18,AZ18*1.11*E18),AZ18*1.25*E18) -> 0 | BB18: =IF(C16="CDI",IF(AZ18<AZ16*0.1,"N","O"),"N") -> N
C19: =+C18 -> CDI | D19: ASCSA | E19: 11.86 | G19: MOTIFS | AW19: h du mois | AX19: =AX18 -> 63 | AY19: MOTIF/TOT MOB | BA19: =IF(AX18=0,0,BA16-BA17+BA18) -> 770.9
D20: ASPA | E20: =VLOOKUP(D20,'Taux horaire'!$A$4:$B$31,2,FALSE) -> 11.75 | G20: HEURE CAT | H20: =(SUBTOTAL(9,I20:O20))*52/12 -> 0 | N20: R | O20: R | R20: =+$M20 -> 0 | S20: =+$N20 -> R | T20: =+$O20 -> R | U20: =+$I20 -> 0 | V20: =+$J20 -> 0 | W20: =+$K20 -> 0 | X20: =+$L20 -> 0 | Y20: =+$M20 -> 0 | Z20: =+$N20 -> R | AA20: =+$O20 -> R | AB20: =+$I20 -> 0 | AC20: =+$J20 -> 0 | AD20: =+$K20 -> 0 | AE20: =+$L20 -> 0 | AF20: =+$M20 -> 0 | AG20: =+$N20 -> R | AH20: =+$O20 -> R | AI20: =+$I20 -> 0 | AJ20: =+$J20 -> 0 | AK20: =+$K20 -> 0 | AL20: =+$L20 -> 0 | AM20: =+$M20 -> 0 | AN20: =+$N20 -> R | AO20: =+$O20 -> R | AP20: =+$I20 -> 0 | AQ20: =+$J20 -> 0 | AR20: =+$K20 -> 0 | AS20: =+$L20 -> 0 | AT20: =+$M20 -> 0 | AU20: =+$N20 -> R | AV20: =+$O20 -> R | AW20: h contrat | AX20: =H20 -> 0 | AY20: HEURE CAT | AZ20: =+H20 -> 0 | BA20: =AZ20*E20 -> 0
C21: =+C20 -> 0 | D21: ASPA | E21: 11.75 | G21: H. ABS | AW21: h travaillable | AX21: =SUM(R20:AV20) -> 0 | AY21: H. ABS | AZ21: =SUM(R21:AV21) -> 0 | BA21: =AZ21*E21 -> 0
C22: 0 | D22: ASPA | E22: 11.75 | G22: H. SUP | AW22: h travaillées | AX22: =AX21-AZ21+AZ22 -> 0 | AY22: H. SUP | AZ22: =SUM(R22:AV22) -> 0 | BA22: =IF(H20<35*52/12,IF(BB22="O",AZ22*1.1*E22,AZ22*1.11*E22),AZ22*1.25*E22) -> 0 | BB22: =IF(C20="CDI",IF(AZ22<AZ20*0.1,"N","O"),"N") -> N
C23: 0 | D23: ASPA | E23: 11.75 | G23: MOTIFS | AW23: h du mois | AX23: =AX22 -> 0 | AY23: MOTIF/TOT MOB | BA23: =IF(AX22=0,0,BA20-BA21+BA22) -> 0
C24: CDD | D24: ASPA | E24: =VLOOKUP(D24,'Taux horaire'!$A$4:$B$31,2,FALSE) -> 11.75 | G24: HEURE CAT | H24: =(SUBTOTAL(9,I24:O24))*52/12 -> 0 | N24: R | O24: R | R24: =+$M24 -> 0 | S24: =+$N24 -> R | T24: =+$O24 -> R | U24: =+$I24 -> 0 | V24: =+$J24 -> 0 | W24: =+$K24 -> 0 | X24: =+$L24 -> 0 | Y24: =+$M24 -> 0 | Z24: =+$N24 -> R | AA24: =+$O24 -> R | AB24: =+$I24 -> 0 | AC24: =+$J24 -> 0 | AD24: =+$K24 -> 0 | AE24: =+$L24 -> 0 | AF24: =+$M24 -> 0 | AG24: =+$N24 -> R | AH24: =+$O24 -> R | AI24: =+$I24 -> 0 | AJ24: =+$J24 -> 0 | AK24: =+$K24 -> 0 | AL24: =+$L24 -> 0 | AM24: =+$M24 -> 0 | AN24: =+$N24 -> R | AO24: =+$O24 -> R | AP24: =+$I24 -> 0 | AQ24: =+$J24 -> 0 | AR24: =+$K24 -> 0 | AS24: =+$L24 -> 0 | AT24: =+$M24 -> 0 | AU24: =+$N24 -> R | AV24: =+$O24 -> R | AW24: h contrat | AX24: =H24 -> 0 | AY24: HEURE CAT | AZ24: =+H24 -> 0 | BA24: =AZ24*E24 -> 0
C25: =+C24 -> CDD | D25: ASPA | E25: 11.75 | G25: H. ABS | AW25: h travaillable | AX25: =SUM(R24:AV24) -> 0 | AY25: H. ABS | AZ25: =SUM(R25:AV25) -> 0 | BA25: =AZ25*E25 -> 0
C26: CDD | D26: ASPA | E26: 11.75 | G26: H. SUP | AW26: h travaillées | AX26: =AX25-AZ25+AZ26 -> 0 | AY26: H. SUP | AZ26: =SUM(R26:AV26) -> 0 | BA26: =IF(H24<35*52/12,IF(BB26="O",AZ26*1.1*E26,AZ26*1.11*E26),AZ26*1.25*E26) -> 0 | BB26: =IF(C24="CDI",IF(AZ26<AZ24*0.1,"N","O"),"N") -> N
C27: CDD | D27: ASPA | E27: 11.75 | G27: MOTIFS | AW27: h du mois | AX27: =AX26 -> 0 | AY27: MOTIF/TOT MOB | BA27: =IF(AX26=0,0,BA24-BA25+BA26) -> 0

Sheet 723315 mission pénitentiaire
A1: 9 | B1: 1 | H1: 2023-09-01 | AV1: ² | BU1: JF | CB1: JANVIER | CC1: 2023
A2: 723315 | B2: UGAP MISSION PENITENTIAIRE | I2: lun | J2: mar | K2: mer | L2: jeu | M2: ven | N2: sam | O2: dim | R2: =DATE(B1+2022,A1,1) -> 2023-09-01 | S2: =R2+1 -> 2023-09-02 | T2: 2023-09-03 | U2: 2023-09-04 | V2: 2023-09-05 | W2: 2023-09-06 | X2: 2023-09-07 | Y2: 2023-09-08 | Z2: 2023-09-09 | AA2: 2023-09-10 | AB2: 2023-09-11 | AC2: 2023-09-12 | AD2: 2023-09-13 | AE2: 2023-09-14 | AF2: 2023-09-15 | AG2: 2023-09-16 | AH2: 2023-09-17 | AI2: 2023-09-18 | AJ2: 2023-09-19 | AK2: 2023-09-20 | AL2: 2023-09-21 | AM2: 2023-09-22 | AN2: 2023-09-23 | AO2: 2023-09-24 | AP2: 2023-09-25 | AQ2: 2023-09-26 | AR2: 2023-09-27 | AS2: 2023-09-28 | AT2: 2023-09-29 | AU2: 2023-09-30 | AV2: 2023-10-01 | AW2: =#REF!+1 ->  | AX2: =AW2+1 ->  | BA2: =SUM(BA7,BA11,BC4:BC19,BA15,BA19) -> 894.075 | CB2: FÉVRIER | CC2: 2024
A3: Nom | B3: Prénom | C3: CDD - CDI | D3: QUALIFICATION | E3: Taux Horaire | F3: Commentaire | G3: Libellé | H3: =H1 -> 2023-09-01 | I3: 1 | J3: 2 | K3: 3 | L3: 4 | M3: 5 | N3: 6 | O3: 7 | R3: =+R2 -> 2023-09-01 | S3: 2023-09-02 | T3: 2023-09-03 | U3: 2023-09-04 | V3: 2023-09-05 | W3: 2023-09-06 | X3: 2023-09-07 | Y3: 2023-09-08 | Z3: 2023-09-09 | AA3: 2023-09-10 | AB3: 2023-09-11 | AC3: 2023-09-12 | AD3: 2023-09-13 | AE3: 2023-09-14 | AF3: 2023-09-15 | AG3: 2023-09-16 | AH3: 2023-09-17 | AI3: 2023-09-18 | AJ3: 2023-09-19 | AK3: 2023-09-20 | AL3: 2023-09-21 | AM3: 2023-09-22 | AN3: 2023-09-23 | AO3: 2023-09-24 | AP3: 2023-09-25 | AQ3: 2023-09-26 | AR3: 2023-09-27 | AS3: 2023-09-28 | AT3: 2023-09-29 | AU3: 2023-09-30 | AV3: 2023-10-01 | AX3: H travaillées mois | AY3: Libellé | AZ3: Total heures mois | BA3: Coût total mois | BB3: AVPP | BC3: Primes | BD3: justification H Plus et Primes | CB3: MARS | CC3: 2025
A4: MOUGAMADOU TAMBIRE | B4: HASINA | C4: CDI | D4: ASCA | E4: =VLOOKUP(D4,'Taux horaire'!$A$4:$B$31,2,FALSE) -> 11.79 | G4: HEURE CAT | H4: =(SUBTOTAL(9,I4:O4))*52/12 -> 75.83333333 | I4: 3.5 | J4: 3.5 | K4: 3.5 | L4: 3.5 | M4: 3.5 | N4: R | O4: R | R4: =IF(TEXT(R2,"jjj")="lun",$I$4,IF(TEXT(R2,"jjj")="mar", $J$4,IF(TEXT(R2,"jjj")="mer", $K$4,IF(TEXT(R2,"jjj")="jeu", $L$4,IF(TEXT(R2,"jjj")="ven", $M$4,IF(TEXT(R2,"jjj")="sam", $N$4,$O$4)))))) -> 3.5 | S4: =IF(TEXT(S2,"jjj")="lun",$I$4,IF(TEXT(S2,"jjj")="mar", $J$4,IF(TEXT(S2,"jjj")="mer", $K$4,IF(TEXT(S2,"jjj")="jeu", $L$4,IF(TEXT(S2,"jjj")="ven", $M$4,IF(TEXT(S2,"jjj")="sam", $N$4,$O$4)))))) -> R | T4: =IF(TEXT(T2,"jjj")="lun",$I$4,IF(TEXT(T2,"jjj")="mar", $J$4,IF(TEXT(T2,"jjj")="mer", $K$4,IF(TEXT(T2,"jjj")="jeu", $L$4,IF(TEXT(T2,"jjj")="ven", $M$4,IF(TEXT(T2,"jjj")="sam", $N$4,$O$4)))))) -> R | U4: =IF(TEXT(U2,"jjj")="lun",$I$4,IF(TEXT(U2,"jjj")="mar", $J$4,IF(TEXT(U2,"jjj")="mer", $K$4,IF(TEXT(U2,"jjj")="jeu", $L$4,IF(TEXT(U2,"jjj")="ven", $M$4,IF(TEXT(U2,"jjj")="sam", $N$4,$O$4)))))) -> 3.5 | V4: =IF(TEXT(V2,"jjj")="lun",$I$4,IF(TEXT(V2,"jjj")="mar", $J$4,IF(TEXT(V2,"jjj")="mer", $K$4,IF(TEXT(V2,"jjj")="jeu", $L$4,IF(TEXT(V2,"jjj")="ven", $M$4,IF(TEXT(V2,"jjj")="sam", $N$4,$O$4)))))) -> 3.5 | W4: 3.5 | X4: 3.5 | Y4: 3.5 | Z4: R | AA4: R | AB4: 3.5 | AC4: 3.5 | AD4: 3.5 | AE4: 3.5 | AF4: 3.5 | AG4: R | AH4: R | AI4: 3.5 | AJ4: 3.5 | AK4: 3.5 | AL4: 3.5 | AM4: 3.5 | AN4: R | AO4: R | AP4: 3.5 | AQ4: 3.5 | AR4: 3.5 | AS4: 3.5 | AT4: 3.5 | AU4: R | AV4: R | AW4: h contrat | AX4: =H4 -> 75.83333333 | AY4: HEURE CAT | AZ4: =+H4 -> 75.83333333 | BA4: =AZ4*E4 -> 894.075 | CB4: AVRIL | CC4: 2026
C5: =+C4 -> CDI | D5: ASCA | E5: 11.79 | G5: H. ABS | AW5: h travaillable | AX5: =SUM(R4:AV4) -> 73.5 | AY5: H. ABS | AZ5: =SUM(R5:AV5) -> 0 | BA5: =AZ5*E5 -> 0 | CB5: MAI | CC5: 2027
C6: CDI | D6: ASCA | E6: 11.79 | G6: H. SUP | AW6: h travaillées | AX6: =AX5-AZ5+AZ6 -> 73.5 | AY6: H. SUP | AZ6: =SUM(R6:AV6) -> 0 | BA6: =IF(H4<35*52/12,IF(BB6="O",AZ6*1.1*E6,AZ6*1.11*E6),AZ6*1.25*E6) -> 0 | BB6: =IF(C4="CDI",IF(AZ6<AZ4*0.1,"N","O"),"N") -> N | CB6: JUIN | CC6: 2028
C7: CDI | D7: ASCA | E7: 11.79 | G7: MOTIFS | AW7: h du mois | AX7: =AX6 -> 73.5 | AY7: MOTIF/TOT MOB | BA7: =IF(AX6=0,0,BA4-BA5+BA6) -> 894.075 | CB7: JUILLET | CC7: 2029
C8: CDI | D8: ASPA | E8: =VLOOKUP(D8,'Taux horaire'!$A$4:$B$31,2,FALSE) -> 11.75 | G8: HEURE CAT | H8: =(SUBTOTAL(9,I8:O8))*52/12 -> 0 | R8: =+$M8 -> 0 | S8: =+$N8 -> 0 | T8: =+$O8 -> 0 | U8: =+$I8 -> 0 | V8: =+$J8 -> 0 | W8: =+$K8 -> 0 | X8: =+$L8 -> 0 | Y8: =+$M8 -> 0 | Z8: =+$N8 -> 0 | AA8: =+$O8 -> 0 | AB8: 3 | AC8: 3 | AD8: 3 | AE8: 3 | AF8: 3 | AG8: =+$N8 -> 0 | AH8: =+$O8 -> 0 | AI8: 3 | AJ8: 3 | AK8: 3 | AL8: 3 | AM8: 3 | AN8: =+$N8 -> 0 | AO8: =+$O8 -> 0 | AP8: 3 | AQ8: 3 | AR8: 3 | AS8: 3 | AT8: 3 | AU8: =+$N8 -> 0 | AV8: =+$O8 -> 0 | AW8: h contrat | AX8: =H8 -> 0 | AY8: HEURE CAT | AZ8: =+H8 -> 0 | BA8: =AZ8*E8 -> 0 | CB8: AOÛT | CC8: 2030
C9: =+C8 -> CDI | D9: ASPA | E9: 11.75 | G9: H. ABS | AW9: h travaillable | AX9: =SUM(R8:AV8) -> 45 | AY9: H. ABS | AZ9: =SUM(R9:AV9) -> 0 | BA9: =AZ9*E9 -> 0 | CB9: SEPTEMBRE | CC9: 2031
C10: CDI | D10: ASPA | E10: 11.75 | G10: H. SUP | AW10: h travaillées | AX10: =AX9-AZ9+AZ10 -> 45 | AY10: H. SUP | AZ10: =SUM(R10:AV10) -> 0 | BA10: =IF(H8<35*52/12,IF(BB10="O",AZ10*1.1*E10,AZ10*1.11*E10),AZ10*1.25*E10) -> 0 | BB10: =IF(C8="CDI",IF(AZ10<AZ8*0.1,"N","O"),"N") -> O | CB10: OCTOBRE | CC10: 2032
C11: CDI | D11: ASPA | E11: 11.75 | G11: MOTIFS | AW11: h du mois | AX11: =AX10 -> 45 | AY11: MOTIF/TOT MOB | BA11: =IF(AX10=0,0,BA8-BA9+BA10) -> 0 | CB11: NOVEMBRE | CC11: 2033
C12: CDI | D12: ASPA | E12: =VLOOKUP(D12,'Taux horaire'!$A$4:$B$31,2,FALSE) -> 11.75 | G12: HEURE CAT | H12: =(SUBTOTAL(9,I12:O12))*52/12 -> 0 | N12: R | O12: R | R12: =+$M12 -> 0 | S12: =+$N12 -> R | T12: =+$O12 -> R | U12: =+$I12 -> 0 | V12: =+$J12 -> 0 | W12: =+$K12 -> 0 | X12: =+$L12 -> 0 | Y12: =+$M12 -> 0 | Z12: =+$N12 -> R | AA12: =+$O12 -> R | AB12: =+$I12 -> 0 | AC12: =+$J12 -> 0 | AD12: =+$K12 -> 0 | AE12: =+$L12 -> 0 | AF12: =+$M12 -> 0 | AG12: =+$N12 -> R | AH12: =+$O12 -> R | AI12: =+$I12 -> 0 | AJ12: =+$J12 -> 0 | AK12: =+$K12 -> 0 | AL12: =+$L12 -> 0 | AM12: =+$M12 -> 0 | AN12: =+$N12 -> R | AO12: =+$O12 -> R | AP12: =+$I12 -> 0 | AQ12: =+$J12 -> 0 | AR12: =+$K12 -> 0 | AS12: =+$L12 -> 0 | AT12: =+$M12 -> 0 | AU12: =+$N12 -> R | AV12: =+$O12 -> R | AW12: h contrat | AX12: =H12 -> 0 | AY12: HEURE CAT | AZ12: =+H12 -> 0 | BA12: =AZ12*E12 -> 0 | CB12: DÉCEMBRE | CC12: 2034
C13: =+C12 -> CDI | D13: ASPA | E13: 11.75 | G13: H. ABS | AW13: h travaillable | AX13: =SUM(R12:AV12) -> 0 | AY13: H. ABS | AZ13: =SUM(R13:AV13) -> 0 | BA13: =AZ13*E13 -> 0
C14: =+C13 -> CDI | D14: ASPA | E14: 11.75 | G14: H. SUP | AW14: h travaillées | AX14: =AX13-AZ13+AZ14 -> 0 | AY14: H. SUP | AZ14: =SUM(R14:AV14) -> 0 | BA14: =IF(H12<35*52/12,IF(BB14="O",AZ14*1.1*E14,AZ14*1.11*E14),AZ14*1.25*E14) -> 0 | BB14: =IF(C12="CDI",IF(AZ14<AZ12*0.1,"N","O"),"N") -> O
C15: =+C14 -> CDI | D15: ASPA | E15: 11.75 | G15: MOTIFS | AW15: h du mois | AX15: =AX14 -> 0 | AY15: MOTIF/TOT MOB | BA15: =IF(AX14=0,0,BA12-BA13+BA14) -> 0
C16: CDI | D16: ASPA | E16: =VLOOKUP(D16,'Taux horaire'!$A$4:$B$31,2,FALSE) -> 11.75 | G16: HEURE CAT | H16: =(SUBTOTAL(9,I16:O16))*52/12 -> 0 | N16: R | O16: R | R16: =+$M16 -> 0 | S16: =+$N16 -> R | T16: =+$O16 -> R | U16: =+$I16 -> 0 | V16: 3 | W16: =+$K16 -> 0 | X16: =+$L16 -> 0 | Y16: =+$M16 -> 0 | Z16: =+$N16 -> R | AA16: =+$O16 -> R | AB16: =+$I16 -> 0 | AC16: =+$J16 -> 0 | AD16: =+$K16 -> 0 | AE16: =+$L16 -> 0 | AF16: =+$M16 -> 0 | AG16: =+$N16 -> R | AH16: =+$O16 -> R | AI16: =+$I16 -> 0 | AJ16: =+$J16 -> 0 | AK16: =+$K16 -> 0 | AL16: =+$L16 -> 0 | AM16: =+$M16 -> 0 | AN16: =+$N16 -> R | AO16: =+$O16 -> R | AP16: =+$I16 -> 0 | AQ16: =+$J16 -> 0 | AR16: =+$K16 -> 0 | AS16: =+$L16 -> 0 | AT16: =+$M16 -> 0 | AU16: =+$N16 -> R | AV16: =+$O16 -> R | AW16: h contrat | AX16: =H16 -> 0 | AY16: HEURE CAT | AZ16: =+H16 -> 0 | BA16: =AZ16*E16 -> 0
C17: =+C16 -> CDI | D17: ASPA | E17: 11.75 | G17: H. ABS | AW17: h travaillable | AX17: =SUM(R16:AV16) -> 3 | AY17: H. ABS | AZ17: =SUM(R17:AV17) -> 0 | BA17: =AZ17*E17 -> 0
C18: =+C17 -> CDI | D18: ASPA | E18: 11.75 | G18: H. SUP | AW18: h travaillées | AX18: =AX17-AZ17+AZ18 -> 3 | AY18: H. SUP | AZ18: =SUM(R18:AV18) -> 0 | BA18: =IF(H16<35*52/12,IF(BB18="O",AZ18*1.1*E18,AZ18*1.11*E18),AZ18*1.25*E18) -> 0 | BB18: =IF(C16="CDI",IF(AZ18<AZ16*0.1,"N","O"),"N") -> O
C19: =+C18 -> CDI | D19: ASPA | E19: 11.75 | G19: MOTIFS | V19: S | AW19: h du mois | AX19: =AX18 -> 3 | AY19: MOTIF/TOT MOB | BA19: =IF(AX18=0,0,BA16-BA17+BA18) -> 0

Sheet 723775 EPIN
H1: 2023-09-01 | AV1: ²
A2: 723775 | B2: ECOLE EPIN | F2: INTERMITTENT | I2: 2019-08-05 | J2: 2019-08-06 | K2: 2019-08-07 | L2: 2019-08-01 | M2: 2019-08-02 | N2: 2019-08-03 | O2: 2019-08-04 | R2: =H1 -> 2023-09-01 | S2: =R2+1 -> 2023-09-02 | T2: 2023-09-03 | U2: 2023-09-04 | V2: 2023-09-05 | W2: 2023-09-06 | X2: 2023-09-07 | Y2: 2023-09-08 | Z2: 2023-09-09 | AA2: 2023-09-10 | AB2: 2023-09-11 | AC2: 2023-09-12 | AD2: 2023-09-13 | AE2: 2023-09-14 | AF2: 2023-09-15 | AG2: 2023-09-16 | AH2: 2023-09-17 | AI2: 2023-09-18 | AJ2: 2023-09-19 | AK2: 2023-09-20 | AL2: 2023-09-21 | AM2: 2023-09-22 | AN2: 2023-09-23 | AO2: 2023-09-24 | AP2: 2023-09-25 | AQ2: 2023-09-26 | AR2: 2023-09-27 | AS2: 2023-09-28 | AT2: 2023-09-29 | AU2: 2023-09-30 | AV2: 2023-10-01 | AW2: =#REF!+1 ->  | AX2: =AW2+1 ->  | BA2: =SUM(BA27,BA23,BA19,BA15,BA11,BA7,BC4:BC27) -> 2214.995967
A3: Nom | B3: Prénom | C3: CDD - CDI | D3: QUALIFICATION | E3: Taux Horaire | F3: Commentaire | G3: Libellé | H3: =H1 -> 2023-09-01 | I3: 1 | J3: 2 | K3: 3 | L3: 4 | M3: 5 | N3: 6 | O3: 7 | R3: =+R2 -> 2023-09-01 | S3: 2023-09-02 | T3: 2023-09-03 | U3: 2023-09-04 | V3: 2023-09-05 | W3: 2023-09-06 | X3: 2023-09-07 | Y3: 2023-09-08 | Z3: 2023-09-09 | AA3: 2023-09-10 | AB3: 2023-09-11 | AC3: 2023-09-12 | AD3: 2023-09-13 | AE3: 2023-09-14 | AF3: 2023-09-15 | AG3: 2023-09-16 | AH3: 2023-09-17 | AI3: 2023-09-18 | AJ3: 2023-09-19 | AK3: 2023-09-20 | AL3: 2023-09-21 | AM3: 2023-09-22 | AN3: 2023-09-23 | AO3: 2023-09-24 | AP3: 2023-09-25 | AQ3: 2023-09-26 | AR3: 2023-09-27 | AS3: 2023-09-28 | AT3: 2023-09-29 | AU3: 2023-09-30 | AV3: 2023-10-01 | AX3: H travaillées mois | AY3: Libellé | AZ3: Total heures mois | BA3: Coût total mois | BB3: AVPP | BC3: Primes | BD3: justification H Plus et Primes
A4: ALCINE | B4: GRESELINE | C4: CDI | D4: ASCA | E4: =VLOOKUP(D4,'Taux horaire'!$A$4:$B$31,2,FALSE) -> 11.79 | G4: HEURE CAT | H4: 54.17 | I4: 3.5 | J4: 3.5 | K4: 3.5 | L4: 3.5 | M4: 2.75 | N4: R | O4: R | R4: =+$M4 -> 2.75 | S4: =+$N4 -> R | T4: =+$O4 -> R | U4: =+$I4 -> 3.5 | V4: =+$J4 -> 3.5 | W4: =+$K4 -> 3.5 | X4: =+$L4 -> 3.5 | Y4: =+$M4 -> 2.75 | Z4: =+$N4 -> R | AA4: =+$O4 -> R | AB4: =+$I4 -> 3.5 | AC4: =+$J4 -> 3.5 | AD4: =+$K4 -> 3.5 | AE4: =+$L4 -> 3.5 | AF4: =+$M4 -> 2.75 | AG4: =+$N4 -> R | AH4: =+$O4 -> R | AI4: =+$I4 -> 3.5 | AJ4: =+$J4 -> 3.5 | AK4: =+$K4 -> 3.5 | AL4: =+$L4 -> 3.5 | AM4: =+$M4 -> 2.75 | AN4: =+$N4 -> R | AO4: =+$O4 -> R | AP4: =+$I4 -> 3.5 | AQ4: =+$J4 -> 3.5 | AR4: =+$K4 -> 3.5 | AS4: =+$L4 -> 3.5 | AT4: =+$M4 -> 2.75 | AU4: =+$N4 -> R | AV4: =+$O4 -> R | AW4: h contrat | AX4: =H4 -> 54.17 | AY4: HEURE CAT | AZ4: =+H4 -> 54.17 | BA4: =AZ4*E4 -> 638.6643
C5: =+C4 -> CDI | D5: ASCA | E5: 11.79 | G5: H. ABS | AB5: 3.5 | AC5: 3.5 | AD5: 3.5 | AE5: 3.5 | AF5: 2.75 | AI5: 3.5 | AJ5: 3.5 | AK5: 3.5 | AL5: 3.5 | AM5: 2.75 | AP5: 3.5 | AQ5: 3.5 | AR5: 3.5 | AS5: 3.5 | AT5: 2.75 | AW5: h travaillable | AX5: =SUM(R4:AV4) -> 69.75 | AY5: H. ABS | AZ5: =SUM(R5:AV5) -> 50.25 | BA5: =AZ5*E5 -> 592.4475
C6: CDI | D6: ASCA | E6: 11.79 | G6: H. SUP | AW6: h travaillées | AX6: =AX5-AZ5+AZ6 -> 19.5 | AY6: H. SUP | AZ6: =SUM(R6:AV6) -> 0 | BA6: =IF(H4<35*52/12,IF(BB6="O",AZ6*1.1*E6,AZ6*1.11*E6),AZ6*1.25*E6) -> 0 | BB6: =IF(C4="CDI",IF(AZ6<AZ4*0.1,"N","O"),"N") -> N
C7: CDI | D7: ASCA | E7: 11.79 | G7: MOTIFS | AB7: CP | AC7: CP | AD7: CP | AE7: CP | AF7: CP | AI7: CP | AJ7: CP | AK7: CP | AL7: CP | AM7: CP | AP7: CP | AQ7: CP | AR7: CP | AS7: CP | AT7: CP | AW7: h du mois | AX7: =AX6 -> 19.5 | AY7: MOTIF/TOT MOB | AZ7: =AX7 -> 19.5 | BA7: =IF(AX6=0,0,BA4-BA5+BA6) -> 46.2168
A8: BOUYA | B8: JILAL | C8: CDI | D8: CE1 | E8: =VLOOKUP(D8,'Taux horaire'!$A$4:$B$31,2,FALSE) -> 13.55 | G8: HEURE CAT | H8: 54.75 | I8: 3 | J8: 3 | K8: 3 | L8: 3 | M8: 3 | R8: =+$M8 -> 3 | S8: =+$N8 -> 0 | T8: =+$O8 -> 0 | U8: =+$I8 -> 3 | V8: =+$J8 -> 3 | W8: =+$K8 -> 3 | X8: =+$L8 -> 3 | Y8: =+$M8 -> 3 | Z8: =+$N8 -> 0 | AA8: =+$O8 -> 0 | AB8: =+$I8 -> 3 | AC8: =+$J8 -> 3 | AD8: =+$K8 -> 3 | AE8: =+$L8 -> 3 | AF8: =+$M8 -> 3 | AG8: =+$N8 -> 0 | AH8: =+$O8 -> 0 | AI8: =+$I8 -> 3 | AJ8: =+$J8 -> 3 | AK8: =+$K8 -> 3 | AL8: =+$L8 -> 3 | AM8: =+$M8 -> 3 | AN8: =+$N8 -> 0 | AO8: =+$O8 -> 0 | AP8: =+$I8 -> 3 | AQ8: =+$J8 -> 3 | AR8: =+$K8 -> 3 | AS8: =+$L8 -> 3 | AT8: =+$M8 -> 3 | AU8: =+$N8 -> 0 | AV8: =+$O8 -> 0 | AW8: h contrat | AX8: =H8 -> 54.75 | AY8: HEURE CAT | AZ8: =+H8 -> 54.75 | BA8: =AZ8*E8 -> 741.8625
C9: =+C8 -> CDI | D9: CE1 | E9: 13.55 | G9: H. ABS | AB9: 3 | AC9: 3 | AD9: 3 | AE9: 3 | AF9: 3 | AI9: 3 | AJ9: 3 | AK9: 3 | AL9: 3 | AM9: 3 | AP9: 3 | AQ9: 3 | AR9: 3 | AS9: 3 | AT9: 3 | AW9: h travaillable | AX9: =SUM(R8:AV8) -> 63 | AY9: H. ABS | AZ9: =SUM(R9:AV9) -> 45 | BA9: =AZ9*E9 -> 609.75
C10: CDI | D10: CE1 | E10: 13.55 | G10: H. SUP | AW10: h travaillées | AX10: =AX9-AZ9+AZ10 -> 18 | AY10: H. SUP | AZ10: =SUM(R10:AV10) -> 0 | BA10: =IF(H8<35*52/12,IF(BB10="O",AZ10*1.1*E10,AZ10*1.11*E10),AZ10*1.25*E10) -> 0 | BB10: =IF(C8="CDI",IF(AZ10<AZ8*0.1,"N","O"),"N") -> N
C11: CDI | D11: CE1 | E11: 13.55 | G11: MOTIFS | AB11: CP | AC11: CP | AD11: CP | AE11: CP | AF11: CP | AI11: CP | AJ11: CP | AK11: CP | AL11: CP | AM11: CP | AP11: CP | AQ11: CP | AR11: CP | AS11: CP | AT11: CP | AW11: h du mois | AX11: =AX10 -> 18 | AY11: MOTIF/TOT MOB | AZ11: =AX11 -> 18 | BA11: =IF(AX10=0,0,BA8-BA9+BA10) -> 132.1125
D12: ASPA | E12: =VLOOKUP(D12,'Taux horaire'!$A$4:$B$31,2,FALSE) -> 11.75 | G12: HEURE CAT | H12: =(SUBTOTAL(9,I12:O12))*52/12 -> 0 | N12: R | O12: R | R12: =+$M12 -> 0 | S12: =+$N12 -> R | T12: =+$O12 -> R | U12: =+$I12 -> 0 | V12: =+$J12 -> 0 | W12: =+$K12 -> 0 | X12: =+$L12 -> 0 | Y12: =+$M12 -> 0 | Z12: =+$N12 -> R | AA12: =+$O12 -> R | AB12: =+$I12 -> 0 | AC12: =+$J12 -> 0 | AD12: =+$K12 -> 0 | AE12: =+$L12 -> 0 | AF12: =+$M12 -> 0 | AG12: =+$N12 -> R | AH12: =+$O12 -> R | AI12: =+$I12 -> 0 | AJ12: =+$J12 -> 0 | AK12: =+$K12 -> 0 | AL12: =+$L12 -> 0 | AM12: =+$M12 -> 0 | AN12: =+$N12 -> R | AO12: =+$O12 -> R | AP12: =+$I12 -> 0 | AQ12: =+$J12 -> 0 | AR12: =+$K12 -> 0 | AS12: =+$L12 -> 0 | AT12: =+$M12 -> 0 | AU12: =+$N12 -> R | AV12: =+$O12 -> R | AW12: h contrat | AX12: =H12 -> 0 | AY12: HEURE CAT | AZ12: =+H12 -> 0 | BA12: =AZ12*E12 -> 0
C13: =+C12 -> 0 | D13: ASPA | E13: 11.75 | G13: H. ABS | AW13: h travaillable | AX13: =SUM(R12:AV12) -> 0 | AY13: H. ABS | AZ13: =SUM(R13:AV13) -> 0 | BA13: =AZ13*E13 -> 0
C14: 0 | D14: ASPA | E14: 11.75 | G14: H. SUP | AW14: h travaillées | AX14: =AX13-AZ13+AZ14 -> 0 | AY14: H. SUP | AZ14: =SUM(R14:AV14) -> 0 | BA14: =IF(H12<35*52/12,IF(BB14="O",AZ14*1.1*E14,AZ14*1.11*E14),AZ14*1.25*E14) -> 0 | BB14: =IF(C12="CDI",IF(AZ14<AZ12*0.1,"N","O"),"N") -> N
C15: 0 | D15: ASPA | E15: 11.75 | G15: MOTIFS | AW15: h du mois | AX15: =AX14 -> 0 | AY15: MOTIF/TOT MOB | AZ15: =AX15 -> 0 | BA15: =IF(AX14=0,0,BA12-BA13+BA14) -> 0
D16: ASPA | E16: =VLOOKUP(D16,'Taux horaire'!$A$4:$B$31,2,FALSE) -> 11.75 | G16: HEURE CAT | H16: =(SUBTOTAL(9,I16:O16))*52/12 -> 0 | N16: R | O16: R | R16: =+$M16 -> 0 | S16: =+$N16 -> R | T16: =+$O16 -> R | U16: =+$I16 -> 0 | V16: =+$J16 -> 0 | W16: =+$K16 -> 0 | X16: =+$L16 -> 0 | Y16: =+$M16 -> 0 | Z16: =+$N16 -> R | AA16: =+$O16 -> R | AB16: =+$I16 -> 0 | AC16: =+$J16 -> 0 | AD16: =+$K16 -> 0 | AE16: =+$L16 -> 0 | AF16: =+$M16 -> 0 | AG16: =+$N16 -> R | AH16: =+$O16 -> R | AI16: =+$I16 -> 0 | AJ16: =+$J16 -> 0 | AK16: =+$K16 -> 0 | AL16: =+$L16 -> 0 | AM16: =+$M16 -> 0 | AN16: =+$N16 -> R | AO16: =+$O16 -> R | AP16: =+$I16 -> 0 | AQ16: =+$J16 -> 0 | AR16: =+$K16 -> 0 | AS16: =+$L16 -> 0 | AT16: =+$M16 -> 0 | AU16: =+$N16 -> R | AV16: =+$O16 -> R | AW16: h contrat | AX16: =H16 -> 0 | AY16: HEURE CAT | AZ16: =+H16 -> 0 | BA16: =AZ16*E16 -> 0
C17: =+C16 -> 0 | D17: ASPA | E17: 11.75 | G17: H. ABS | AW17: h travaillable | AX17: =SUM(R16:AV16) -> 0 | AY17: H. ABS | AZ17: =SUM(R17:AV17) -> 0 | BA17: =AZ17*E17 -> 0
C18: 0 | D18: ASPA | E18: 11.75 | G18: H. SUP | AW18: h travaillées | AX18: =AX17-AZ17+AZ18 -> 0 | AY18: H. SUP | AZ18: =SUM(R18:AV18) -> 0 | BA18: =IF(H16<35*52/12,IF(BB18="O",AZ18*1.1*E18,AZ18*1.11*E18),AZ18*1.25*E18) -> 0 | BB18: =IF(C16="CDI",IF(AZ18<AZ16*0.1,"N","O"),"N") -> N
C19: 0 | D19: ASPA | E19: 11.75 | G19: MOTIFS | AW19: h du mois | AX19: =AX18 -> 0 | AY19: MOTIF/TOT MOB | AZ19: =AX19 -> 0 | BA19: =IF(AX18=0,0,BA16-BA17+BA18) -> 0
A20: BADIAGA | B20: ALAHSSANE | C20: CDD | D20: ASPA | E20: =VLOOKUP(D20,'Taux horaire'!$A$4:$B$31,2,FALSE) -> 11.75 | F20: nettoyage annuel | G20: HEURE CAT | H20: =(SUBTOTAL(9,I20:O20))*52/12 -> 108.3333333 | I20: 5 | J20: 5 | K20: 5 | L20: 5 | M20: 5 | N20: R | O20: R | R20: =+$M20 -> 5 | S20: =+$N20 -> R | T20: =+$O20 -> R | U20: =+$I20 -> 5 | V20: =+$J20 -> 5 | W20: =+$K20 -> 5 | X20: =+$L20 -> 5 | Y20: =+$M20 -> 5 | Z20: =+$N20 -> R | AA20: =+$O20 -> R | AB20: =+$I20 -> 5 | AC20: =+$J20 -> 5 | AD20: =+$K20 -> 5 | AE20: =+$L20 -> 5 | AF20: =+$M20 -> 5 | AG20: =+$N20 -> R | AH20: =+$O20 -> R | AI20: 0 | AJ20: 0 | AK20: 0 | AL20: 0 | AM20: 0 | AN20: =+$N20 -> R | AO20: =+$O20 -> R | AP20: 0 | AQ20: 0 | AR20: 0 | AS20: 0 | AT20: 0 | AU20: =+$N20 -> R | AV20: =+$O20 -> R | AW20: h contrat | AX20: =H20 -> 108.3333333 | AY20: HEURE CAT | AZ20: =+H20 -> 108.3333333 | BA20: =AZ20*E20 -> 1272.916667
C21: =+C20 -> CDD | D21: ASPA | E21: 11.75 | G21: H. ABS | AW21: h travaillable | AX21: =SUM(R20:AV20) -> 55 | AY21: H. ABS | AZ21: =SUM(R21:AV21) -> 0 | BA21: =AZ21*E21 -> 0
C22: CDD | D22: ASPA | E22: 11.75 | G22: H. SUP | AW22: h travaillées | AX22: =AX21-AZ21+AZ22 -> 55 | AY22: H. SUP | AZ22: =SUM(R22:AV22) -> 0 | BA22: =IF(H20<35*52/12,IF(BB22="O",AZ22*1.1*E22,AZ22*1.11*E22),AZ22*1.25*E22) -> 0 | BB22: =IF(C20="CDI",IF(AZ22<AZ20*0.1,"N","O"),"N") -> N
C23: CDD | D23: ASPA | E23: 11.75 | G23: MOTIFS | AF23: S | AW23: h du mois | AX23: =AX22 -> 55 | AY23: MOTIF/TOT MOB | AZ23: =AX23 -> 55 | BA23: =IF(AX22=0,0,BA20-BA21+BA22) -> 1272.916667
A24: GORY | B24: OUSMANE | C24: CDD | D24: ASPA | E24: =VLOOKUP(D24,'Taux horaire'!$A$4:$B$31,2,FALSE) -> 11.75 | F24: nettoyage annuel | G24: HEURE CAT | H24: =(SUBTOTAL(9,I24:O24))*52/12 -> 65 | I24: 3 | J24: 3 | K24: 3 | L24: 3 | M24: 3 | N24: R | O24: R | R24: =+$M24 -> 3 | S24: =+$N24 -> R | T24: =+$O24 -> R | U24: =+$I24 -> 3 | V24: =+$J24 -> 3 | W24: =+$K24 -> 3 | X24: =+$L24 -> 3 | Y24: =+$M24 -> 3 | Z24: =+$N24 -> R | AA24: =+$O24 -> R | AB24: =+$I24 -> 3 | AC24: =+$J24 -> 3 | AD24: =+$K24 -> 3 | AE24: =+$L24 -> 3 | AF24: =+$M24 -> 3 | AG24: =+$N24 -> R | AH24: =+$O24 -> R | AI24: 0 | AJ24: 0 | AK24: 0 | AL24: 0 | AM24: 0 | AN24: =+$N24 -> R | AO24: =+$O24 -> R | AP24: 0 | AQ24: 0 | AR24: 0 | AS24: 0 | AT24: 0 | AU24: =+$N24 -> R | AV24: =+$O24 -> R | AW24: h contrat | AX24: =H24 -> 65 | AY24: HEURE CAT | AZ24: =+H24 -> 65 | BA24: =AZ24*E24 -> 763.75
C25: =+C24 -> CDD | D25: ASPA | E25: 11.75 | G25: H. ABS | AW25: h travaillable | AX25: =SUM(R24:AV24) -> 33 | AY25: H. ABS | AZ25: =SUM(R25:AV25) -> 0 | BA25: =AZ25*E25 -> 0
C26: CDD | D26: ASPA | E26: 11.75 | G26: H. SUP | AW26: h travaillées | AX26: =AX25-AZ25+AZ26 -> 33 | AY26: H. SUP | AZ26: =SUM(R26:AV26) -> 0 | BA26: =IF(H24<35*52/12,IF(BB26="O",AZ26*1.1*E26,AZ26*1.11*E26),AZ26*1.25*E26) -> 0 | BB26: =IF(C24="CDI",IF(AZ26<AZ24*0.1,"N","O"),"N") -> N
C27: CDD | D27: ASPA | E27: 11.75 | G27: MOTIFS | AF27: S | AW27: h du mois | AX27: =AX26 -> 33 | AY27: MOTIF/TOT MOB | AZ27: =AX27 -> 33 | BA27: =IF(AX26=0,0,BA24-BA25+BA26) -> 763.75
